{"text_format":"3","workbook":"xlsx","n_sheets":3,"sheets":["Sheet1","添加、修改、删除会员单位信息总表","Sheet3"],"not_rendered":{"defined_names":3},"read":"whole","date_system":"1900"}

{"sheet":"Sheet1","index":0,"n_rows":68,"n_cols":9,"rows_kept":68,"merged":[[0,0,0,4]]}
["2022年企业申报项目信息汇总"]
["序号","单位名称","申报项目","主营产品","排名","会员等级","会费标准","缴费情况","备注"]
[1,"天津智易时代科技发展有限公司","国家专精特新小巨人企业","品扬尘在线监测仪","天津前三",{"$f":"VLOOKUP(Sheet1!B3,'添加、修改、删除会员单位信息总表'!$A$1:$E$1505,4,FALSE)","v":"一般会员单位"},{"$f":"VLOOKUP(B3,'添加、修改、删除会员单位信息总表'!$A$1:$E$1505,5,FALSE)","v":2000},{"$f":"VLOOKUP(B3,'添加、修改、删除会员单位信息总表'!$A$1:$C$1505,2,FALSE)","v":2000}]
[2,"杭州思看科技有限公司","国家专精特新小巨人企业","手持式激光三维扫描仪","国内市场位居第一",{"$f":"VLOOKUP(Sheet1!B4,'添加、修改、删除会员单位信息总表'!$A$1:$E$1505,4,FALSE)","v":"一般会员单位"},{"$f":"VLOOKUP(B4,'添加、修改、删除会员单位信息总表'!$A$1:$E$1505,5,FALSE)","v":2000},{"$f":"VLOOKUP(B4,'添加、修改、删除会员单位信息总表'!$A$1:$C$1505,2,FALSE)","v":0}]
[3,"广州市晶华精密光学股份有限公司","国家专精特新小巨人企业","天文望远镜和双筒望远镜","国内市场位居第一",{"$f":"VLOOKUP(Sheet1!B5,'添加、修改、删除会员单位信息总表'!$A$1:$E$1505,4,FALSE)","v":"一般会员单位"},{"$f":"VLOOKUP(B5,'添加、修改、删除会员单位信息总表'!$A$1:$E$1505,5,FALSE)","v":2000},{"$f":"VLOOKUP(B5,'添加、修改、删除会员单位信息总表'!$A$1:$C$1505,2,FALSE)","v":2000}]
[4,"青天伟业仪器仪表有限公司","国家专精特新小巨人企业","电磁流量计及电磁流量传感器","河南省前列",{"$f":"VLOOKUP(Sheet1!B6,'添加、修改、删除会员单位信息总表'!$A$1:$E$1505,4,FALSE)","v":"一般会员单位"},{"$f":"VLOOKUP(B6,'添加、修改、删除会员单位信息总表'!$A$1:$E$1505,5,FALSE)","v":2000},{"$f":"VLOOKUP(B6,'添加、修改、删除会员单位信息总表'!$A$1:$C$1505,2,FALSE)","v":2000}]
[5,"余姚市三力信电磁阀有限公司","国家专精特新小巨人企业","高性能流体电磁阀","国内市场占有率位居前列",{"$f":"VLOOKUP(Sheet1!B7,'添加、修改、删除会员单位信息总表'!$A$1:$E$1505,4,FALSE)","v":"一般会员单位"},{"$f":"VLOOKUP(B7,'添加、修改、删除会员单位信息总表'!$A$1:$E$1505,5,FALSE)","v":2000},{"$f":"VLOOKUP(B7,'添加、修改、删除会员单位信息总表'!$A$1:$C$1505,2,FALSE)","v":2000}]
[6,"深圳万测试验设备有限公司","国家专精特新小巨人企业","智能化机器人全自动送样拉伸测试系统","位居前三",{"$f":"VLOOKUP(Sheet1!B8,'添加、修改、删除会员单位信息总表'!$A$1:$E$1505,4,FALSE)","v":"一般会员单位"},{"$f":"VLOOKUP(B8,'添加、修改、删除会员单位信息总表'!$A$1:$E$1505,5,FALSE)","v":2000},{"$f":"VLOOKUP(B8,'添加、修改、删除会员单位信息总表'!$A$1:$C$1505,2,FALSE)","v":0}]
[7,"中科赛凌（北京）科技有限公司","国家专精特新小巨人企业","单压缩机制冷技术生产的气候环境试验箱","国内市场位居第一",{"$f":"VLOOKUP(Sheet1!B9,'添加、修改、删除会员单位信息总表'!$A$1:$E$1505,4,FALSE)","v":"理事单位"},{"$f":"VLOOKUP(B9,'添加、修改、删除会员单位信息总表'!$A$1:$E$1505,5,FALSE)","v":5000},{"$f":"VLOOKUP(B9,'添加、修改、删除会员单位信息总表'!$A$1:$C$1505,2,FALSE)","v":5000}]
[8,"北京东西分析有限公司","国家专精特新小巨人企业","质谱仪","北京市前三",{"$f":"VLOOKUP(Sheet1!B10,'添加、修改、删除会员单位信息总表'!$A$1:$E$1505,4,FALSE)","v":"理事单位"},{"$f":"VLOOKUP(B10,'添加、修改、删除会员单位信息总表'!$A$1:$E$1505,5,FALSE)","v":5000},{"$f":"VLOOKUP(B10,'添加、修改、删除会员单位信息总表'!$A$1:$C$1505,2,FALSE)","v":0}]
[9,"北京智博联科技股份有限公司","国家专精特新小巨人企业","建筑工程质量智能无损检测仪","国内前三","一般会员单位",2000,0,"新会员"]
[10,"重庆继联机电有限公司","国家专精特新小巨人企业","的压力/差压变送器膜盒","国内前三","一般会员单位",2000,0,"新会员"]
[11,"上海知楚仪器有限公司","国家专精特新小巨人企业","司振荡培养箱（摇床）","全国第一",{"$f":"VLOOKUP(Sheet1!B13,'添加、修改、删除会员单位信息总表'!$A$1:$E$1505,4,FALSE)","v":"一般会员单位"},{"$f":"VLOOKUP(B13,'添加、修改、删除会员单位信息总表'!$A$1:$E$1505,5,FALSE)","v":2000},{"$f":"VLOOKUP(B13,'添加、修改、删除会员单位信息总表'!$A$1:$C$1505,2,FALSE)","v":2000}]
[12,"开封市测控技术有限公司","国家专精特新小巨人企业","X/β射线面密度测量仪","国内前三","一般会员单位",0,0,"新会员"]
[13,"武汉飞恩微电子有限公司","国家专精特新小巨人企业","MEMS 汽车燃油蒸汽压力传感器","市场占有率10%","一般会员单位",2000,0,"新会员"]
[14,"时代集团公司","国家专精特新小巨人企业","硬度计","国内第一",{"$f":"VLOOKUP(Sheet1!B16,'添加、修改、删除会员单位信息总表'!$A$1:$E$1505,4,FALSE)","v":"一般会员单位"},{"$f":"VLOOKUP(B16,'添加、修改、删除会员单位信息总表'!$A$1:$E$1505,5,FALSE)","v":2000},{"$f":"VLOOKUP(B16,'添加、修改、删除会员单位信息总表'!$A$1:$C$1505,2,FALSE)","v":0},"北京时代之峰科技有限公司"]
[15,"福建顺昌虹润精密仪器有限公司","国家专精特新小巨人企业","显示控制仪表","国内前三",{"$f":"VLOOKUP(Sheet1!B17,'添加、修改、删除会员单位信息总表'!$A$1:$E$1505,4,FALSE)","v":"常务理事单位"},{"$f":"VLOOKUP(B17,'添加、修改、删除会员单位信息总表'!$A$1:$E$1505,5,FALSE)","v":5000},{"$f":"VLOOKUP(B17,'添加、修改、删除会员单位信息总表'!$A$1:$C$1505,2,FALSE)","v":0}]
[16,"湖南军成科技有限公司","国家专精特新小巨人企业","武器装备智能制造非标生产线、大负载防爆机器\n人 ","国内第二",{"$f":"VLOOKUP(Sheet1!B18,'添加、修改、删除会员单位信息总表'!$A$1:$E$1505,4,FALSE)","v":{"$error":"#N/A"}},{"$f":"VLOOKUP(B18,'添加、修改、删除会员单位信息总表'!$A$1:$E$1505,5,FALSE)","v":{"$error":"#N/A"}},null,"无名称"]
[17,"江苏博克斯科技股份有限公司","国家专精特新小巨人企业","水质在线监测过程控制仪表","国内市场占有率达到15%",{"$f":"VLOOKUP(Sheet1!B19,'添加、修改、删除会员单位信息总表'!$A$1:$E$1505,4,FALSE)","v":"一般会员单位"},{"$f":"VLOOKUP(B19,'添加、修改、删除会员单位信息总表'!$A$1:$E$1505,5,FALSE)","v":2000},{"$f":"VLOOKUP(B19,'添加、修改、删除会员单位信息总表'!$A$1:$C$1505,2,FALSE)","v":2000}]
[18,"无锡智能自控工程股份有限公司","国家专精特新小巨人企业","调节阀","国内排名第四",{"$f":"VLOOKUP(Sheet1!B20,'添加、修改、删除会员单位信息总表'!$A$1:$E$1505,4,FALSE)","v":"理事单位"},{"$f":"VLOOKUP(B20,'添加、修改、删除会员单位信息总表'!$A$1:$E$1505,5,FALSE)","v":5000},{"$f":"VLOOKUP(B20,'添加、修改、删除会员单位信息总表'!$A$1:$C$1505,2,FALSE)","v":0}]
[19,"重庆川仪分析仪器有限公司","国家专精特新小巨人企业","“PS7500 水泥高温过程分析系统”“PS7400 垃圾\n焚烧烟气排放连续监测分析系统”","国内前三",{"$f":"VLOOKUP(Sheet1!B21,'添加、修改、删除会员单位信息总表'!$A$1:$E$1505,4,FALSE)","v":"一般会员单位"},{"$f":"VLOOKUP(B21,'添加、修改、删除会员单位信息总表'!$A$1:$E$1505,5,FALSE)","v":2000},{"$f":"VLOOKUP(B21,'添加、修改、删除会员单位信息总表'!$A$1:$C$1505,2,FALSE)","v":0}]
[20,"深圳三思纵横科技股份有限公司","国家专精特新小巨人企业","金属类力学试验机","全国前二",{"$f":"VLOOKUP(Sheet1!B22,'添加、修改、删除会员单位信息总表'!$A$1:$E$1505,4,FALSE)","v":"一般会员单位"},{"$f":"VLOOKUP(B22,'添加、修改、删除会员单位信息总表'!$A$1:$E$1505,5,FALSE)","v":2000},{"$f":"VLOOKUP(B22,'添加、修改、删除会员单位信息总表'!$A$1:$C$1505,2,FALSE)","v":0}]
[21,"北京北分瑞利分析仪器(集团)有限责任公司","国家专精特新小巨人企业","光谱、色谱","2019-2021市场占有率13%、15%和17%",{"$f":"VLOOKUP(Sheet1!B23,'添加、修改、删除会员单位信息总表'!$A$1:$E$1505,4,FALSE)","v":"一般会员单位"},{"$f":"VLOOKUP(B23,'添加、修改、删除会员单位信息总表'!$A$1:$E$1505,5,FALSE)","v":2000},{"$f":"VLOOKUP(B23,'添加、修改、删除会员单位信息总表'!$A$1:$C$1505,2,FALSE)","v":0}]
[22,"成都玖锦科技有限公司","国家专精特新小巨人企业","矢量信号源、射频阻抗测试仪、 矢量信号分析仪","市场占有率12%，位居同行业前三",{"$f":"VLOOKUP(Sheet1!B24,'添加、修改、删除会员单位信息总表'!$A$1:$E$1505,4,FALSE)","v":"一般会员单位"},{"$f":"VLOOKUP(B24,'添加、修改、删除会员单位信息总表'!$A$1:$E$1505,5,FALSE)","v":2000},{"$f":"VLOOKUP(B24,'添加、修改、删除会员单位信息总表'!$A$1:$C$1505,2,FALSE)","v":0}]
[23,"杭州奥盛仪器有限公司","国家专精特新小巨人企业","核酸提取仪","国内市场占有率为12%",{"$f":"VLOOKUP(Sheet1!B25,'添加、修改、删除会员单位信息总表'!$A$1:$E$1505,4,FALSE)","v":{"$error":"#N/A"}},{"$f":"VLOOKUP(B25,'添加、修改、删除会员单位信息总表'!$A$1:$E$1505,5,FALSE)","v":{"$error":"#N/A"}},0,"新会员"]
[24,"杭州仰仪科技有限公司","国家专精特新小巨人企业","量热仪","市场占有率为20%，位居国内前三",{"$f":"VLOOKUP(Sheet1!B26,'添加、修改、删除会员单位信息总表'!$A$1:$E$1505,4,FALSE)","v":"一般会员单位"},{"$f":"VLOOKUP(B26,'添加、修改、删除会员单位信息总表'!$A$1:$E$1505,5,FALSE)","v":2000},{"$f":"VLOOKUP(B26,'添加、修改、删除会员单位信息总表'!$A$1:$C$1505,2,FALSE)","v":2000}]
[25,"湖北弘仪电子科技股份有限公司","国家专精特新小巨人企业","危化品智能自动化装卸控制器及系统","市场占有率17.5%，位居国内前三",{"$f":"VLOOKUP(Sheet1!B27,'添加、修改、删除会员单位信息总表'!$A$1:$E$1505,4,FALSE)","v":{"$error":"#N/A"}},{"$f":"VLOOKUP(B27,'添加、修改、删除会员单位信息总表'!$A$1:$E$1505,5,FALSE)","v":{"$error":"#N/A"}},0,"新会员"]
[26,"青岛盛瀚色谱技术有限公司","国家专精特新小巨人企业","离子色谱仪","位居国内第二",{"$f":"VLOOKUP(Sheet1!B28,'添加、修改、删除会员单位信息总表'!$A$1:$E$1505,4,FALSE)","v":"理事单位"},{"$f":"VLOOKUP(B28,'添加、修改、删除会员单位信息总表'!$A$1:$E$1505,5,FALSE)","v":5000},{"$f":"VLOOKUP(B28,'添加、修改、删除会员单位信息总表'!$A$1:$C$1505,2,FALSE)","v":5000}]
[27,"上海睿钰生物科技有限公司","国家专精特新小巨人企业","智能图像细胞计数分析仪","市场占有率为20%，位居国内前三",{"$f":"VLOOKUP(Sheet1!B29,'添加、修改、删除会员单位信息总表'!$A$1:$E$1505,4,FALSE)","v":"一般会员单位"},{"$f":"VLOOKUP(B29,'添加、修改、删除会员单位信息总表'!$A$1:$E$1505,5,FALSE)","v":2000},{"$f":"VLOOKUP(B29,'添加、修改、删除会员单位信息总表'!$A$1:$C$1505,2,FALSE)","v":2000}]
[28,"深圳市三恩时科技有限公司","国家专精特新小巨人企业","分光测色仪","市场占有率为17%，位居国内前三",{"$f":"VLOOKUP(Sheet1!B30,'添加、修改、删除会员单位信息总表'!$A$1:$E$1505,4,FALSE)","v":"一般会员单位"},{"$f":"VLOOKUP(B30,'添加、修改、删除会员单位信息总表'!$A$1:$E$1505,5,FALSE)","v":2000},{"$f":"VLOOKUP(B30,'添加、修改、删除会员单位信息总表'!$A$1:$C$1505,2,FALSE)","v":2000}]
[29,"威胜信息技术股份有限公司","国家专精特新小巨人企业","用电信息采集终端和计量自动化终端","2020-2021年的国内市场占有率分别为11.0%、10.2%，位居国内前三。",{"$f":"VLOOKUP(Sheet1!B31,'添加、修改、删除会员单位信息总表'!$A$1:$E$1505,4,FALSE)","v":"一般会员单位"},{"$f":"VLOOKUP(B31,'添加、修改、删除会员单位信息总表'!$A$1:$E$1505,5,FALSE)","v":2000},{"$f":"VLOOKUP(B31,'添加、修改、删除会员单位信息总表'!$A$1:$C$1505,2,FALSE)","v":0}]
[30,"芯视界（北京）科技有限公司","国家专精特新小巨人企业","基于量子点光谱传感芯片物联网终端的水环境大数据系统","国内的市场占有率是37%，位居全国前三",{"$f":"VLOOKUP(Sheet1!B32,'添加、修改、删除会员单位信息总表'!$A$1:$E$1505,4,FALSE)","v":"一般会员单位"},{"$f":"VLOOKUP(B32,'添加、修改、删除会员单位信息总表'!$A$1:$E$1505,5,FALSE)","v":2000},{"$f":"VLOOKUP(B32,'添加、修改、删除会员单位信息总表'!$A$1:$C$1505,2,FALSE)","v":2000}]
[31,"浙江赛思电子科技有限公司","国家专精特新小巨人企业","网同步时钟设备","市场占有率为20%，位居国内前三",{"$f":"VLOOKUP(Sheet1!B33,'添加、修改、删除会员单位信息总表'!$A$1:$E$1505,4,FALSE)","v":{"$error":"#N/A"}},{"$f":"VLOOKUP(B33,'添加、修改、删除会员单位信息总表'!$A$1:$E$1505,5,FALSE)","v":{"$error":"#N/A"}},0,"新会员"]
[32,"浙江正泰中自控制工程有限公司","国家专精特新小巨人企业","分布式控制系统","市场占有率分别为15%、17%。位居国内前三",{"$f":"VLOOKUP(Sheet1!B34,'添加、修改、删除会员单位信息总表'!$A$1:$E$1505,4,FALSE)","v":"理事单位"},{"$f":"VLOOKUP(B34,'添加、修改、删除会员单位信息总表'!$A$1:$E$1505,5,FALSE)","v":5000},{"$f":"VLOOKUP(B34,'添加、修改、删除会员单位信息总表'!$A$1:$C$1505,2,FALSE)","v":5000}]
[33,"重庆材料研究院有限公司","国家专精特新小巨人企业","仪表功能材料","市场占有率为25%，位居全国前三",{"$f":"VLOOKUP(Sheet1!B35,'添加、修改、删除会员单位信息总表'!$A$1:$E$1505,4,FALSE)","v":"副理事长单位"},{"$f":"VLOOKUP(B35,'添加、修改、删除会员单位信息总表'!$A$1:$E$1505,5,FALSE)","v":20000},{"$f":"VLOOKUP(B35,'添加、修改、删除会员单位信息总表'!$A$1:$C$1505,2,FALSE)","v":0}]
[34,"重庆市大正仪表股份有限公司","国家专精特新小巨人企业","工业钨铼热电偶、单芯铠装热电偶","国内市场占有率分别位居前二、第一",{"$f":"VLOOKUP(Sheet1!B36,'添加、修改、删除会员单位信息总表'!$A$1:$E$1505,4,FALSE)","v":"理事单位"},{"$f":"VLOOKUP(B36,'添加、修改、删除会员单位信息总表'!$A$1:$E$1505,5,FALSE)","v":5000},{"$f":"VLOOKUP(B36,'添加、修改、删除会员单位信息总表'!$A$1:$C$1505,2,FALSE)","v":0}]
[35,"丹东奥龙射线仪器集团有限公司","国家专精特新重点小巨人企业","射线探伤仪器","全国第一",{"$f":"VLOOKUP(Sheet1!B37,'添加、修改、删除会员单位信息总表'!$A$1:$E$1505,4,FALSE)","v":"常务理事单位"},{"$f":"VLOOKUP(B37,'添加、修改、删除会员单位信息总表'!$A$1:$E$1505,5,FALSE)","v":5000},{"$f":"VLOOKUP(B37,'添加、修改、删除会员单位信息总表'!$A$1:$C$1505,2,FALSE)","v":0}]
[36,"浙江福立分析仪器股份有限公司","国家专精特新重点小巨人企业","气相色谱仪","全国第一",{"$f":"VLOOKUP(Sheet1!B38,'添加、修改、删除会员单位信息总表'!$A$1:$E$1505,4,FALSE)","v":"一般会员单位"},{"$f":"VLOOKUP(B38,'添加、修改、删除会员单位信息总表'!$A$1:$E$1505,5,FALSE)","v":2000},{"$f":"VLOOKUP(B38,'添加、修改、删除会员单位信息总表'!$A$1:$C$1505,2,FALSE)","v":0}]
[37,"西安东风机电股份有限公司","国家专精特新重点小巨人企业","科里奥利质量流量计","全国前五，国产品牌第一",{"$f":"VLOOKUP(Sheet1!B39,'添加、修改、删除会员单位信息总表'!$A$1:$E$1505,4,FALSE)","v":"一般会员单位"},{"$f":"VLOOKUP(B39,'添加、修改、删除会员单位信息总表'!$A$1:$E$1505,5,FALSE)","v":2000},{"$f":"VLOOKUP(B39,'添加、修改、删除会员单位信息总表'!$A$1:$C$1505,2,FALSE)","v":2000}]
[38,"苏州英示测量科技有限公司","国家专精特新重点小巨人企业","数字化几何量精密测量仪器及解决方案","全国第一",{"$f":"VLOOKUP(Sheet1!B40,'添加、修改、删除会员单位信息总表'!$A$1:$E$1505,4,FALSE)","v":"一般会员单位"},{"$f":"VLOOKUP(B40,'添加、修改、删除会员单位信息总表'!$A$1:$E$1505,5,FALSE)","v":2000},{"$f":"VLOOKUP(B40,'添加、修改、删除会员单位信息总表'!$A$1:$C$1505,2,FALSE)","v":2000}]
[39,"金华市蓝海光电技术有限公司","国家专精特新重点小巨人企业","激光测距仪、、激光雷达、激光测速仪、激光测距传感\n器","国内前三",{"$f":"VLOOKUP(Sheet1!B41,'添加、修改、删除会员单位信息总表'!$A$1:$E$1505,4,FALSE)","v":"一般会员单位"},{"$f":"VLOOKUP(B41,'添加、修改、删除会员单位信息总表'!$A$1:$E$1505,5,FALSE)","v":2000},{"$f":"VLOOKUP(B41,'添加、修改、删除会员单位信息总表'!$A$1:$C$1505,2,FALSE)","v":0}]
[40,"江门市润宇传感器科技有限公司","国家专精特新重点小巨人企业","磁致伸缩位移传感器高精度算法软件","国内前三",{"$f":"VLOOKUP(Sheet1!B42,'添加、修改、删除会员单位信息总表'!$A$1:$E$1505,4,FALSE)","v":"一般会员单位"},{"$f":"VLOOKUP(B42,'添加、修改、删除会员单位信息总表'!$A$1:$E$1505,5,FALSE)","v":2000},{"$f":"VLOOKUP(B42,'添加、修改、删除会员单位信息总表'!$A$1:$C$1505,2,FALSE)","v":2000}]
[41,"湖北万测试验设备有限公司","湖北省专精特新小巨人企业","微机控制电液伺服万能试验机","湖北省第一",{"$f":"VLOOKUP(Sheet1!B43,'添加、修改、删除会员单位信息总表'!$A$1:$E$1505,4,FALSE)","v":"一般会员单位"},{"$f":"VLOOKUP(B43,'添加、修改、删除会员单位信息总表'!$A$1:$E$1505,5,FALSE)","v":2000},{"$f":"VLOOKUP(B43,'添加、修改、删除会员单位信息总表'!$A$1:$C$1505,2,FALSE)","v":2000}]
[42,"济南鑫光试验机制造有限公司","济南市专精特新小巨人企业","电液伺服万能试验机","山东省前三",{"$f":"VLOOKUP(Sheet1!B44,'添加、修改、删除会员单位信息总表'!$A$1:$E$1505,4,FALSE)","v":"理事单位"},{"$f":"VLOOKUP(B44,'添加、修改、删除会员单位信息总表'!$A$1:$E$1505,5,FALSE)","v":5000},{"$f":"VLOOKUP(B44,'添加、修改、删除会员单位信息总表'!$A$1:$C$1505,2,FALSE)","v":0}]
[43,"南京霍普斯科技有限公司","江苏省专精特新小巨人企业","品固定污染源非甲烷总烃连续监测系统","国内市场位居前五",{"$f":"VLOOKUP(Sheet1!B45,'添加、修改、删除会员单位信息总表'!$A$1:$E$1505,4,FALSE)","v":"一般会员单位"},{"$f":"VLOOKUP(B45,'添加、修改、删除会员单位信息总表'!$A$1:$E$1505,5,FALSE)","v":2000},{"$f":"VLOOKUP(B45,'添加、修改、删除会员单位信息总表'!$A$1:$C$1505,2,FALSE)","v":2000}]
[44,"常州米德克光电科技有限公司","常州市专精特新中小企业","激光水平仪","国内市场位居前列",{"$f":"VLOOKUP(Sheet1!B46,'添加、修改、删除会员单位信息总表'!$A$1:$E$1505,4,FALSE)","v":"一般会员单位"},{"$f":"VLOOKUP(B46,'添加、修改、删除会员单位信息总表'!$A$1:$E$1505,5,FALSE)","v":2000},{"$f":"VLOOKUP(B46,'添加、修改、删除会员单位信息总表'!$A$1:$C$1505,2,FALSE)","v":2000}]
[45,"南京江南永新光学有限公司","南京市专精特新小巨人企业","光学显微镜","国内第四",{"$f":"VLOOKUP(Sheet1!B47,'添加、修改、删除会员单位信息总表'!$A$1:$E$1505,4,FALSE)","v":"理事单位"},{"$f":"VLOOKUP(B47,'添加、修改、删除会员单位信息总表'!$A$1:$E$1505,5,FALSE)","v":5000},{"$f":"VLOOKUP(B47,'添加、修改、删除会员单位信息总表'!$A$1:$C$1505,2,FALSE)","v":5000}]
[46,"南京沃天科技股份有限公司","江苏省专精特新小巨人企业","硅压阻式压力传感器","国内排名第三",{"$f":"VLOOKUP(Sheet1!B48,'添加、修改、删除会员单位信息总表'!$A$1:$E$1505,4,FALSE)","v":"理事单位"},{"$f":"VLOOKUP(B48,'添加、修改、删除会员单位信息总表'!$A$1:$E$1505,5,FALSE)","v":5000},{"$f":"VLOOKUP(B48,'添加、修改、删除会员单位信息总表'!$A$1:$C$1505,2,FALSE)","v":5000}]
[47,"无锡冠亚恒温制冷技术有限公司","无锡市专精特新小巨人企业","品制冷加热控温系统","江苏前三",{"$f":"VLOOKUP(Sheet1!B49,'添加、修改、删除会员单位信息总表'!$A$1:$E$1505,4,FALSE)","v":"一般会员单位"},{"$f":"VLOOKUP(B49,'添加、修改、删除会员单位信息总表'!$A$1:$E$1505,5,FALSE)","v":2000},{"$f":"VLOOKUP(B49,'添加、修改、删除会员单位信息总表'!$A$1:$C$1505,2,FALSE)","v":2000}]
[48,"内蒙古光能科技有限公司","内蒙古自治区专精特新小巨人企业","高灵敏度微量气体分析仪","在内蒙古自治区位居第一",{"$f":"VLOOKUP(Sheet1!B50,'添加、修改、删除会员单位信息总表'!$A$1:$E$1505,4,FALSE)","v":"一般会员单位"},{"$f":"VLOOKUP(B50,'添加、修改、删除会员单位信息总表'!$A$1:$E$1505,5,FALSE)","v":2000},{"$f":"VLOOKUP(B50,'添加、修改、删除会员单位信息总表'!$A$1:$C$1505,2,FALSE)","v":0}]
[49,"浙江至控科技有限公司","制造业单项冠军产品","自主可控 PLC","在国防军工领域国内前三",{"$f":"VLOOKUP(Sheet1!B51,'添加、修改、删除会员单位信息总表'!$A$1:$E$1505,4,FALSE)","v":"一般会员单位"},{"$f":"VLOOKUP(B51,'添加、修改、删除会员单位信息总表'!$A$1:$E$1505,5,FALSE)","v":2000},{"$f":"VLOOKUP(B51,'添加、修改、删除会员单位信息总表'!$A$1:$C$1505,2,FALSE)","v":2000},"浙江至控科技有限公司"]
[50,"无锡日联科技股份有限公司","制造业单项冠军产品"," X 射线智能检测装备","全国第一，全球前三。",{"$f":"VLOOKUP(Sheet1!B52,'添加、修改、删除会员单位信息总表'!$A$1:$E$1505,4,FALSE)","v":"一般会员单位"},{"$f":"VLOOKUP(B52,'添加、修改、删除会员单位信息总表'!$A$1:$E$1505,5,FALSE)","v":2000},{"$f":"VLOOKUP(B52,'添加、修改、删除会员单位信息总表'!$A$1:$C$1505,2,FALSE)","v":2000}]
[51,"中机试验装备股份有限公司","制造业单项冠军产品","高温持久蠕变疲劳试验机","全国第一",{"$f":"VLOOKUP(Sheet1!B53,'添加、修改、删除会员单位信息总表'!$A$1:$E$1505,4,FALSE)","v":"副理事长单位"},{"$f":"VLOOKUP(B53,'添加、修改、删除会员单位信息总表'!$A$1:$E$1505,5,FALSE)","v":20000},{"$f":"VLOOKUP(B53,'添加、修改、删除会员单位信息总表'!$A$1:$C$1505,2,FALSE)","v":0}]
[52,"深圳万测试验设备有限公司","制造业单项冠军产品","全自动电子拉力试验机","全国第一",{"$f":"VLOOKUP(Sheet1!B54,'添加、修改、删除会员单位信息总表'!$A$1:$E$1505,4,FALSE)","v":"一般会员单位"},{"$f":"VLOOKUP(B54,'添加、修改、删除会员单位信息总表'!$A$1:$E$1505,5,FALSE)","v":2000},{"$f":"VLOOKUP(B54,'添加、修改、删除会员单位信息总表'!$A$1:$C$1505,2,FALSE)","v":0}]
[53,"深圳市中图仪器科技有限公司","制造业单项冠军产品","精密 3D测量仪器","位居前列",{"$f":"VLOOKUP(Sheet1!B55,'添加、修改、删除会员单位信息总表'!$A$1:$E$1505,4,FALSE)","v":"一般会员单位"},{"$f":"VLOOKUP(B55,'添加、修改、删除会员单位信息总表'!$A$1:$E$1505,5,FALSE)","v":2000},{"$f":"VLOOKUP(B55,'添加、修改、删除会员单位信息总表'!$A$1:$C$1505,2,FALSE)","v":2000},"深圳市中图仪器科技有限公司"]
[54,"苏州苏试试验集团股份有限公司","制造业单项冠军产品","力学环境振动试验设备","全国第一",{"$f":"VLOOKUP(Sheet1!B56,'添加、修改、删除会员单位信息总表'!$A$1:$E$1505,4,FALSE)","v":"副理事长单位"},{"$f":"VLOOKUP(B56,'添加、修改、删除会员单位信息总表'!$A$1:$E$1505,5,FALSE)","v":20000},{"$f":"VLOOKUP(B56,'添加、修改、删除会员单位信息总表'!$A$1:$C$1505,2,FALSE)","v":20000},"苏州苏试试验集团股份有限公司"]
[55,"苏州英示测量科技有限公司","制造业单项冠军产品","数字化测量量具","全国第一",{"$f":"VLOOKUP(Sheet1!B57,'添加、修改、删除会员单位信息总表'!$A$1:$E$1505,4,FALSE)","v":"一般会员单位"},{"$f":"VLOOKUP(B57,'添加、修改、删除会员单位信息总表'!$A$1:$E$1505,5,FALSE)","v":2000},{"$f":"VLOOKUP(B57,'添加、修改、删除会员单位信息总表'!$A$1:$C$1505,2,FALSE)","v":2000}]
[56,"菲尼克斯(中国)投资有限公司","制造业单项冠军产品","柜内连接器","全国第一",{"$f":"VLOOKUP(Sheet1!B58,'添加、修改、删除会员单位信息总表'!$A$1:$E$1505,4,FALSE)","v":"理事单位"},{"$f":"VLOOKUP(B58,'添加、修改、删除会员单位信息总表'!$A$1:$E$1505,5,FALSE)","v":5000},{"$f":"VLOOKUP(B58,'添加、修改、删除会员单位信息总表'!$A$1:$C$1505,2,FALSE)","v":0},"菲尼克斯(中国)投资有限公司"]
[57,"安徽天康（集团）股份有限公司","制造业单项冠军产品","热电偶、热电阻、双金属温度计","全国第一",{"$f":"VLOOKUP(Sheet1!B59,'添加、修改、删除会员单位信息总表'!$A$1:$E$1505,4,FALSE)","v":"常务理事单位"},{"$f":"VLOOKUP(B59,'添加、修改、删除会员单位信息总表'!$A$1:$E$1505,5,FALSE)","v":5000},{"$f":"VLOOKUP(B59,'添加、修改、删除会员单位信息总表'!$A$1:$C$1505,2,FALSE)","v":5000}]
[58,"郑州炜盛电子科技有限公司","制造业单项冠军产品","气体传感器","全国第一",{"$f":"VLOOKUP(Sheet1!B60,'添加、修改、删除会员单位信息总表'!$A$1:$E$1505,4,FALSE)","v":{"$error":"#N/A"}},{"$f":"VLOOKUP(B60,'添加、修改、删除会员单位信息总表'!$A$1:$E$1505,5,FALSE)","v":{"$error":"#N/A"}},null,"无名称"]
[59,"上海知楚仪器有限公司","制造业单项冠军产品","振荡培养箱（摇床）","全国第一",{"$f":"VLOOKUP(Sheet1!B61,'添加、修改、删除会员单位信息总表'!$A$1:$E$1505,4,FALSE)","v":"一般会员单位"},{"$f":"VLOOKUP(B61,'添加、修改、删除会员单位信息总表'!$A$1:$E$1505,5,FALSE)","v":2000},{"$f":"VLOOKUP(B61,'添加、修改、删除会员单位信息总表'!$A$1:$C$1505,2,FALSE)","v":2000}]
[60,"威胜集团有限公司","单项冠军复核评价","三相电子式电能表","全国第一",{"$f":"VLOOKUP(Sheet1!B62,'添加、修改、删除会员单位信息总表'!$A$1:$E$1505,4,FALSE)","v":"副理事长单位"},{"$f":"VLOOKUP(B62,'添加、修改、删除会员单位信息总表'!$A$1:$E$1505,5,FALSE)","v":20000},{"$f":"VLOOKUP(B62,'添加、修改、删除会员单位信息总表'!$A$1:$C$1505,2,FALSE)","v":20000}]
[61,"承德热河克罗尼仪表有限公司","河北省第四批制造业单项冠军","品金属管浮\n子流量计","河北省第一，国内前三",{"$f":"VLOOKUP(Sheet1!B63,'添加、修改、删除会员单位信息总表'!$A$1:$E$1505,4,FALSE)","v":"理事单位"},{"$f":"VLOOKUP(B63,'添加、修改、删除会员单位信息总表'!$A$1:$E$1505,5,FALSE)","v":5000},{"$f":"VLOOKUP(B63,'添加、修改、删除会员单位信息总表'!$A$1:$C$1505,2,FALSE)","v":0}]
[62,"麦克奥迪实业集团有限公司","福建省重点培育和发展的国际知名品牌","光学显微镜","国内市场位居前列",{"$f":"VLOOKUP(Sheet1!B64,'添加、修改、删除会员单位信息总表'!$A$1:$E$1505,4,FALSE)","v":"理事单位"},{"$f":"VLOOKUP(B64,'添加、修改、删除会员单位信息总表'!$A$1:$E$1505,5,FALSE)","v":5000},{"$f":"VLOOKUP(B64,'添加、修改、删除会员单位信息总表'!$A$1:$C$1505,2,FALSE)","v":5000}]
[63,"中国四联仪器仪表集团有限公司","重点领域补短板的情况证明","PDS 智能压力变送器系列","国产品牌排名第一",{"$f":"VLOOKUP(Sheet1!B65,'添加、修改、删除会员单位信息总表'!$A$1:$E$1505,4,FALSE)","v":"理事长单位"},{"$f":"VLOOKUP(B65,'添加、修改、删除会员单位信息总表'!$A$1:$E$1505,5,FALSE)","v":50000},{"$f":"VLOOKUP(B65,'添加、修改、删除会员单位信息总表'!$A$1:$C$1505,2,FALSE)","v":50000},"中国四联仪器仪表集团有限公司"]
[64,"重庆苏试四达试验设备有限公司","重庆市企业技术中心认定","综合情况","国内前三",{"$f":"VLOOKUP(Sheet1!B66,'添加、修改、删除会员单位信息总表'!$A$1:$E$1505,4,FALSE)","v":"理事单位"},{"$f":"VLOOKUP(B66,'添加、修改、删除会员单位信息总表'!$A$1:$E$1505,5,FALSE)","v":5000},{"$f":"VLOOKUP(B66,'添加、修改、删除会员单位信息总表'!$A$1:$C$1505,2,FALSE)","v":5000}]
[65,"重庆川仪自动化股份有限公司","制造业“一链一网一平台”揭榜挂帅项目","综合情况","具备仪器仪表行业产业链“链主”地位",{"$f":"VLOOKUP(Sheet1!B67,'添加、修改、删除会员单位信息总表'!$A$1:$E$1505,4,FALSE)","v":{"$error":"#N/A"}},{"$f":"VLOOKUP(B67,'添加、修改、删除会员单位信息总表'!$A$1:$E$1505,5,FALSE)","v":{"$error":"#N/A"}}]
[{"$nulls":7},{"$f":"SUM(H3:H67)","v":174000}]

{"sheet":"添加、修改、删除会员单位信息总表","index":1,"n_rows":1505,"n_cols":5,"rows_kept":1505}
["单位名称","合计2022年","收款时间-2022","会员级别","会费标准"]
["上海百若试验仪器有限公司",0,null,"一般会员单位",2000]
["长春因赛图精密仪器设备有限公司",0,null,"一般会员单位",2000]
["胜利油田东强机电设备制造有限公司",2000,"2022-01-04","一般会员单位",2000]
["杭州赛加得传感器有限公司",0,null,"一般会员单位",2000]
["武汉中原电子信息有限公司",0,null,"一般会员单位",2000]
["西安北成电子有限责任公司",2000,"2022-03-09","一般会员单位",2000]
["重庆山马电表有限公司",0,null,"一般会员单位",2000]
["大庆市伟杰钻采技术开发有限公司",0,null,"一般会员单位",2000]
["北京镁伽机器人科技有限公司",0,null,"一般会员单位",2000]
["广州市锦泉仪器科技有限公司",0,null,"一般会员单位",2000]
["河南润辉科技有限公司",0,null,"一般会员单位",2000]
["郑州克莱克特科学仪器有限公司",0,null,"一般会员单位",2000]
["长春市智能仪器设备有限公司",0,null,"一般会员单位",2000]
["杭州鑫高科技有限公司",0,null,"一般会员单位",2000]
["武汉华美生物工程有限公司",0,null,"一般会员单位",2000]
["郑州华洲食品检测科技有限公司",0,null,"一般会员单位",2000]
["杭州春来科技有限公司",0,null,"一般会员单位",2000]
["武汉上成生物科技有限公司",0,null,"一般会员单位",2000]
["成都玖锦科技有限公司",0,null,"一般会员单位",2000]
["武汉中科志康生物科技有限公司",0,null,"一般会员单位",2000]
["湖南中仪器材进出口有限公司",0,null,"一般会员单位",2000]
["北京海林自控科技股份有限公司",2000,"2022-03-03","一般会员单位",2000]
["常州米德克光电科技有限公司",2000,"2022-03-03","一般会员单位",2000]
["大连中工策控科技有限公司",2000,"2022-03-03","一般会员单位",2000]
["广州广电计量检查股份有限公司",0,null,"一般会员单位",2000]
["杭州思看科技有限公司",0,null,"一般会员单位",2000]
["鹤壁精中科技有限公司",0,null,"一般会员单位",2000]
["江门市润宇传感器科技有限公司",2000,"2022-04-24","一般会员单位",2000]
["江元（天长）科技股份有限公司",2000,"2022-03-07","一般会员单位",2000]
["四川阳辰信通科技有限公司",0,null,"一般会员单位",2000]
["吉林省赛维特姆科技有限公司",0,null,"一般会员单位",2000]
["天津三英精密仪器股份有限公司",2000,"2022-03-03","一般会员单位",2000]
["大连励成实验室服务有限公司",0,null,"一般会员单位",2000]
["中科赛凌（北京）科技有限公司",5000,"2022-05-18","理事单位",5000]
["杭州集智机电股份有限公司",0,null,"理事单位",5000]
["上海衡望智能科技有限公司",0,null,"一般会员单位",2000]
["博侃电气（合肥）有限公司",0,null,"一般会员单位",2000]
["和昌电业（肇庆）有限公司",0,null,"一般会员单位",2000]
["上海晋想仪表科技有限公司",0,null,"一般会员单位",2000]
["深圳市泽合生物科技有限公司",0,null,"一般会员单位",2000]
["四川精卫食品检测科技有限公司",0,null,"一般会员单位",2000]
["重庆微奥云生物技术有限公司",0,null,"一般会员单位",2000]
["东莞市日臻尚勤电工材料有限公司",0,null,"一般会员单位",2000]
["广东立佳实业有限公司",0,null,"一般会员单位",2000]
["怀化建南电子科技有限公司",0,null,"一般会员单位",2000]
["伊莎贝棱辉特（上海）电子科技贸易有限公司",0,null,"一般会员单位",2000]
["北京天宇沃特仪表科技有限公司",2000,"2022-03-16","一般会员单位",2000]
["上海纤检仪器有限公司",0,null,"一般会员单位",2000]
["上海如海光电科技有限公司",0,null,"一般会员单位",2000]
["北京格瑞德曼仪器设备有限公司",0,null,"一般会员单位",2000]
["四川物讯科技有限公司",0,null,"一般会员单位",2000]
["厦门市时创自动控制工程有限公司",0,null,"一般会员单位",2000]
["湖南析瑞科技有限公司",0,null,"一般会员单位",2000]
["北京福腾宝科技发展有限公司",0,null,"一般会员单位",2000]
["兰州交通大学测绘与地理信息学院",0,null,"一般会员单位",2000]
["承德市恒伟电子设备制造有限公司",0,null,"一般会员单位",2000]
["淄博伟泰工业控制技术有限公司",0,null,"一般会员单位",2000]
["昌乐县标王化工仪表有限公司",0,null,"一般会员单位",2000]
["承德市中威电子有限公司",0,null,"一般会员单位",2000]
["招远市东朋自动化仪表有限公司",0,null,"一般会员单位",2000]
["山东英维思测控科技有限公司",0,null,"一般会员单位",2000]
["淄博盖米测控系统有限公司",0,null,"一般会员单位",2000]
["山东科迈测控技术有限公司",0,null,"一般会员单位",2000]
["山东中博流体科技有限公司",0,null,"一般会员单位",2000]
["淄博新时代仪表制造有限公司",0,null,"一般会员单位",2000]
["山东麦立淇工业自动化技术设备有限公司",0,null,"一般会员单位",2000]
["淄博珈禾弼源电气有限公司",0,null,"一般会员单位",2000]
["山东博鸿电气股份有限公司",0,null,"一般会员单位",2000]
["山东恒光电子科技有限公司",0,null,"一般会员单位",2000]
["山东福瑞德测控系统有限公司",0,null,"一般会员单位",2000]
["南京丹迪克电力仪表有限公司",2000,"2022-03-07","一般会员单位",2000]
["武汉磐电科技股份有限公司",2000,"2022-03-10","一般会员单位",2000]
["中山市东凤镇柏林顿电子电器厂",0,null,"一般会员单位",2000]
["上海妙迪仪表有限公司",0,null,"一般会员单位",2000]
["SMC（中国）有限公司",0,null,"一般会员单位",2000]
["国家光电测距仪检测中心",0,null,"一般会员单位",2000]
["无锡华普微电子有限公司",0,null,"一般会员单位",2000]
["本钢高远实业发展有限公司",0,null,"一般会员单位",2000]
["大唐联仪科技有限公司",0,null,"一般会员单位",2000]
["融智生物科技（青岛）有限公司",2000,"2022-03-10","一般会员单位",2000]
["青岛聚创环保集团有限公司",0,null,"一般会员单位",2000]
["青岛佳明测控科技股份有限公司",0,null,"一般会员单位",2000]
["郑州安诺科学仪器有限公司",0,null,"一般会员单位",2000]
["北京测尔康生物技术有限公司",0,null,"一般会员单位",2000]
["灏科仪器设计（大连）有限公司",0,null,"一般会员单位",2000]
["湖南平凡科技有限公司",0,null,"一般会员单位",2000]
["东莞市宝大仪器有限公司",0,null,"一般会员单位",2000]
["屹谱仪器制造（上海）有限公司",0,null,"一般会员单位",2000]
["宁夏绿水青山试验机有限公司",0,null,"一般会员单位",2000]
["苏州贝特智能仪表有限公司",0,null,"一般会员单位",2000]
["丹东百特仪器有限公司",0,null,"一般会员单位",2000]
["成都长城开发科技有限公司",2000,"2022-03-21","一般会员单位",2000]
["上海澄峰科技股份有限公司",0,null,"一般会员单位",2000]
["黄骅菲斯福实验仪器有限公司",0,null,"一般会员单位",2000]
["杭州中旺科技有限公司",0,null,"一般会员单位",2000]
["浙江易杰自动化有限公司",0,null,"一般会员单位",2000]
["哈尔滨市步长科技有限公司",0,null,"一般会员单位",2000]
["深圳市日联科技有限公司",0,null,"一般会员单位",2000]
["杭州朗杰测控技术开发有限公司",0,null,"一般会员单位",2000]
["上海剑平动平衡机制造有限公司",2000,"2022-03-09","一般会员单位",2000]
["济南鑫光试验机制造有限公司",0,null,"理事单位",5000]
["天津市港源试验仪器厂",0,null,"一般会员单位",2000]
["力试（上海）科学仪器有限公司",0,null,"一般会员单位",2000]
["普拉瑞思科学仪器（苏州）有限公司",0,null,"一般会员单位",2000]
["苏州双金实业有限公司",2000,"2022-03-03","一般会员单位",2000]
["四川可达源科技有限公司",0,null,"一般会员单位",2000]
["上海科颐维电子科技有限公司",0,null,"一般会员单位",2000]
["江苏汇鸿国际集团外经有限公司",0,null,"一般会员单位",2000]
["宜昌兆峰自动化仪表有限责任公司",0,null,"一般会员单位",2000]
["江苏沪振科技有限公司",0,null,"一般会员单位",2000]
["江苏德高物联技术有限公司",0,null,"一般会员单位",2000]
["无锡市华机机械制造有限公司",0,null,"一般会员单位",2000]
["陕西科瑞迪机电设备有限公司",0,null,"一般会员单位",2000]
["浙江礼显试验仪器制造有限公司",0,null,"一般会员单位",2000]
["温州三和量具仪器有限公司",0,null,"一般会员单位",2000]
["中测测控（西安）研究院有限公司",0,null,"一般会员单位",2000]
["上海华之光谱仪器有限公司",0,null,"一般会员单位",2000]
["浙江永盛科技股份有限公司",0,null,"一般会员单位",2000]
["宁波北角生物科技有限公司",0,null,"一般会员单位",2000]
["威胜信息技术股份有限公司",0,null,"一般会员单位",2000]
["上海翼捷工业安全设备股份有限公司",0,null,"一般会员单位",2000]
["上海乾曜光学科技有限公司",0,null,"一般会员单位",2000]
["上海理鑫光学科技有限公司",0,null,"一般会员单位",2000]
["南京玉林光学仪器厂",0,null,"一般会员单位",2000]
["潍坊亚峰化工仪表有限公司",0,null,"一般会员单位",2000]
["杭州美仪自动化技术股份有限公司",5000,"2022-03-16","理事单位",5000]
["陕西威尔机电科技有限公司",0,null,"一般会员单位",2000]
["武汉普创数据科技有限公司",0,null,"一般会员单位",2000]
["广州市晶华精密光学股份有限公司",2000,"2022-03-10","一般会员单位",2000]
["南京波长光电科技股份有限公司",0,null,"一般会员单位",2000]
["上海唯视锐光电技术有限公司",0,null,"一般会员单位",2000]
["苏州飞时曼精密仪器有限公司",0,null,"一般会员单位",2000]
["上海朋环测控技术股份有限公司",0,null,"一般会员单位",2000]
["无锡信捷电气股份有限公司",0,null,"一般会员单位",2000]
["上海迪纳声科技股份有限公司",0,null,"一般会员单位",2000]
["济南大陆机电股份有限公司",0,null,"一般会员单位",2000]
["上海泽赞自动化科技有限公司",0,null,"一般会员单位",2000]
["广东盈峰科技有限公司",0,null,"一般会员单位",2000]
["西安森瑟斯传感器有限责任公司",0,null,"一般会员单位",2000]
["天长市九星仪表有限公司",0,null,"一般会员单位",2000]
["江苏华夏仪表有限公司",0,null,"一般会员单位",2000]
["北京菲舍波特科技发展有限公司",0,null,"一般会员单位",2000]
["申铄科技（上海）有限公司",0,null,"一般会员单位",2000]
["上海光学仪器一厂",0,null,"一般会员单位",2000]
["武汉大学",0,null,"一般会员单位",2000]
["武汉嘉晨电子技术有限公司",0,null,"一般会员单位",2000]
["陕西和平化玻有限公司",0,null,"一般会员单位",2000]
["广州艾威仪器科技有限公司",0,null,"一般会员单位",2000]
["河南科盛仪器设备有限公司",0,null,"一般会员单位",2000]
["安徽大禹仪器有限公司",0,null,"一般会员单位",2000]
["青岛爱普科生物工程有限公司",0,null,"一般会员单位",2000]
["南京简智仪器设备有限公司",0,null,"一般会员单位",2000]
["希悦尔（中国）有限公司",0,null,"一般会员单位",2000]
["上海仪电（集团）有限公司",2000,"2022-03-07","一般会员单位",2000]
["江苏华鹏智能仪表科技股份有限公司",0,null,"一般会员单位",2000]
["陕西创威科技有限公司",0,null,"一般会员单位",2000]
["天津市亿环自动化仪表技术有限公司",0,null,"一般会员单位",2000]
["浙江大学",0,null,"一般会员单位",2000]
["浙江盛迪科技股份有限公司",2000,"2022-03-03","一般会员单位",2000]
["河北阔佳科技有限公司",0,null,"一般会员单位",2000]
["上海集迦电子科技有限公司",2000,"2022-03-03","一般会员单位",2000]
["广州志行仪器设备有限公司",0,null,"一般会员单位",2000]
["陕西诺盈自动化仪表有限公司",0,null,"一般会员单位",2000]
["石家庄莱博瑞分析仪器有限公司",0,null,"一般会员单位",2000]
["杭州成套节流装置有限公司",0,null,"一般会员单位",2000]
["河北百奇分析仪器贸易有限公司",0,null,"一般会员单位",2000]
["新疆恒利达科技发展有限公司",0,null,"一般会员单位",2000]
["云南科仪化玻有限公司",0,null,"一般会员单位",2000]
["武汉集思仪器设备有限公司",2000,"2022-03-10","一般会员单位",2000]
["九江浔阳区平恒智仪科技有限公司",0,null,"一般会员单位",2000]
["上海恒跃医疗器械有限公司",0,null,"一般会员单位",2000]
["上海天器合金材料有限公司",0,"2021-11-02","一般会员单位",2000]
["广州奥松电子股份有限公司",0,null,"一般会员单位",2000]
["上海一恒科学仪器有限公司",0,null,"一般会员单位",2000]
["沈阳园竹科技有限公司",2000,"2022-03-09","一般会员单位",2000]
["太原市浩兴科贸有限公司",0,null,"一般会员单位",2000]
["天津市科恩仪器有限公司",0,null,"一般会员单位",2000]
["重庆拜普斯科技有限公司",0,null,"一般会员单位",2000]
["宁波飞羚电气有限公司",0,null,"一般会员单位",2000]
["杭州瑞晓自动化仪表有限公司",2000,"2022-03-21","一般会员单位",2000]
["呼和浩特市瑞普仪器贸易有限公司",0,null,"一般会员单位",2000]
["金华市益迪医疗设备有限公司",0,null,"一般会员单位",2000]
["江苏新浩洁实验仪器有限公司",2000,"2022-03-07","一般会员单位",2000]
["南京科翔仪器设备有限公司",0,null,"一般会员单位",2000]
["泰思枫（上海）环保科技有限公司",0,null,"一般会员单位",2000]
["苏州贝茵医疗器械有限公司",0,null,"一般会员单位",2000]
["沈阳佳德联益能源科技股份有限公司",2000,"2022-03-03","一般会员单位",2000]
["杭州蓝圣阀门有限公司",0,null,"一般会员单位",2000]
["华夏阀门有限公司",0,null,"一般会员单位",2000]
["北京至善智行教育科技有限公司",0,null,"一般会员单位",2000]
["南昌市新海通实业有限公司",0,null,"一般会员单位",2000]
["东莞市钢固五金制品有限公司",0,null,"一般会员单位",2000]
["无锡市双鸾电表电器有限公司",0,null,"一般会员单位",2000]
["微仪光电（天津）有限公司",2000,"2022-03-07","一般会员单位",2000]
["深圳市振兵智能有限公司",0,null,"一般会员单位",2000]
["江门市华讯方舟科技有限公司",0,null,"一般会员单位",2000]
["重庆远感科技有限公司",0,null,"一般会员单位",2000]
["北京华仪三谱仪器有限责任公司",0,null,"一般会员单位",2000]
["北京汇龙昌海科贸有限公司",0,null,"一般会员单位",2000]
["北京谱莱析科技有限公司",0,null,"一般会员单位",2000]
["广州摩特伟希尔机械设备有限责任公司",0,null,"一般会员单位",2000]
["杭州喜瓶者仪器技术有限公司",0,null,"一般会员单位",2000]
["河北欧润科学仪器股份有限公司",0,null,"一般会员单位",2000]
["济南昆腾商贸有限公司",0,null,"一般会员单位",2000]
["青岛华元聚合物有限公司",0,null,"一般会员单位",2000]
["四环科仪科技发展河北有限责任公司",0,null,"一般会员单位",2000]
["北京安泰瑞科技有限公司",0,null,"一般会员单位",2000]
["浙江巨为仪器股份有限公司",0,null,"一般会员单位",2000]
["华谱科仪（北京）科技有限公司",0,null,"一般会员单位",2000]
["聚束科技（北京）有限公司",0,null,"一般会员单位",2000]
["光谱时代（北京）科技有限公司",2000,"2022-03-24","一般会员单位",2000]
["远索实验室科技（东莞）有限公司",0,null,"一般会员单位",2000]
["广东宏睿仪器设备有限公司",0,null,"一般会员单位",2000]
["广州五所环境仪器有限公司",2000,"2022-03-09","一般会员单位",2000]
["雷柏特（南通）实验室系统工程有限公司",2000,"2022-03-10","一般会员单位",2000]
["上海榕德新材料科技有限公司",0,null,"一般会员单位",2000]
["苏州培英实验设备有限公司",0,null,"一般会员单位",2000]
["重庆哈丁环境试验技术股份有限公司",0,null,"一般会员单位",2000]
["东莞张力测控技术有限公司",0,null,"一般会员单位",2000]
["无锡赛弗安全装备有限公司",0,null,"一般会员单位",2000]
["南京木木西里科技有限公司",2000,"2022-03-14","一般会员单位",2000]
["天津九州通医疗器械有限公司",0,null,"一般会员单位",2000]
["青岛潍泰源商贸有限公司",0,null,"一般会员单位",2000]
["河钢数字信达（邯郸）科技有限公司",0,null,"一般会员单位",2000]
["苏州市悠越电子有限公司",0,null,"一般会员单位",2000]
["安特仪表集团有限公司",0,null,"一般会员单位",2000]
["物兴科技（深圳）有限公司",2000,"2022-05-18","一般会员单位",2000]
["和远智能科技股份有限公司",2000,"2022-03-11","一般会员单位",2000]
["荣湃半导体（上海）有限公司",0,null,"一般会员单位",2000]
["河北光科测控设备有限公司",0,null,"一般会员单位",2000]
["深圳市尔泰科技有限公司",0,null,"一般会员单位",2000]
["武汉松野智能仪表有限公司",0,null,"一般会员单位",2000]
["北京舜天伟业流体控制科技有限公司",0,null,"一般会员单位",2000]
["北京锐达仪表有限公司",0,null,"一般会员单位",2000]
["珠海安瑞通电子科技有限公司",0,null,"一般会员单位",2000]
["中讯博尔智能技术（无锡）有限公司",0,null,"一般会员单位",2000]
["无锡圣普电力科技有限公司",0,null,"一般会员单位",2000]
["河北海纳电测仪器股份有限公司",0,null,"一般会员单位",2000]
["南京卡佛科学仪器有限公司",0,null,"一般会员单位",2000]
["河北中航检测技术服务有限公司",0,null,"一般会员单位",2000]
["杭州明瑞智能检测科技有限公司",0,null,"一般会员单位",2000]
["天津众科创谱科技有限公司",0,null,"一般会员单位",2000]
["上海朴维自控科技有限公司",0,null,"一般会员单位",2000]
["浙江省东阳市三星温度仪表有限公司",0,null,"一般会员单位",2000]
["博明特沧州科技有限公司",0,null,"一般会员单位",2000]
["贝士德仪器科技（北京）有限公司",0,null,"一般会员单位",2000]
["坛墨质检科技股份有限公司",0,null,"一般会员单位",2000]
["丹阳丹耀光学有限公司",0,null,"一般会员单位",2000]
["徐州泰诺仕视觉科技有限公司",0,null,"一般会员单位",2000]
["成都方舟微电子有限公司",0,null,"一般会员单位",2000]
["深圳市钡科电子有限公司",0,null,"一般会员单位",2000]
["盛密科技（上海）有限公司",0,null,"一般会员单位",2000]
["肇庆绿宝石电子科技股份有限公司",0,null,"一般会员单位",2000]
["陕西银河电力仪表股份有限公司",0,null,"一般会员单位",2000]
["沧州华阳试验机制造有限公司",0,null,"一般会员单位",2000]
["扬州英迈克测控技术有限公司",0,null,"一般会员单位",2000]
["无锡日联科技股份有限公司",2000,"2022-03-29","一般会员单位",2000]
["重庆优玛泰思特仪器有限公司",2000,"2022-03-07","一般会员单位",2000]
["东莞市海达仪器有限公司",0,null,"一般会员单位",2000]
["沈阳柏沐科技有限公司",0,null,"一般会员单位",2000]
["北京嘉信怡达科技有限公司",0,null,"一般会员单位",2000]
["普瑞麦迪（北京）实验室技术有限公司",0,null,"一般会员单位",2000]
["国药器械黑龙江科学器材有限公司",0,null,"一般会员单位",2000]
["北京信而泰科技股份有限公司",2000,"2022-03-11","一般会员单位",2000]
["宁波恒达高智能科技股份有限公司",0,null,"一般会员单位",2000]
["安方高科电磁安全技术（北京）有限公司",0,null,"一般会员单位",2000]
["震坤行工业超市(上海)有限公司",2000,"2022-03-10","一般会员单位",2000]
["厦门埃癸斯流体控制设备有限公司",0,null,"一般会员单位",2000]
["青岛顺昕电子科技有限公司",0,null,"一般会员单位",2000]
["福建省力得自动化设备有限公司",2000,"2022-03-29","一般会员单位",2000]
["大束科技（北京）有限责任公司",2000,"2022-01-21","一般会员单位",2000]
["青海大学实验室设备管理处",0,null,"一般会员单位",2000]
["浙江工业大学实验室与资产管理处",0,null,"一般会员单位",2000]
["江苏众安云物联科技有限公司",0,null,"一般会员单位",2000]
["青岛中资中程高新技术产业发展有限公司",2000,"2022-03-24","一般会员单位",2000]
["苏州钮曼精密机电科技有限公司",2000,"2022-03-14","一般会员单位",2000]
["上海赢佳实业集团有限公司",0,null,"一般会员单位",2000]
["中国农业大学工学院智能检测技术与\r\n装备研究中心",2000,"2022-03-03","一般会员单位",2000]
["上海简然实验室设备有限公司",0,null,"一般会员单位",2000]
["上海森信实验仪器有限公司",2000,"2022-03-07","一般会员单位",2000]
["博罗县东明化工有限公司",0,null,"一般会员单位",2000]
["济南恒瑞金试验机有限公司",0,null,"一般会员单位",2000]
["杭州应敏科技有限公司",2000,"2022-03-07","一般会员单位",2000]
["北京航天希尔测试技术有限公司",2000,"2022-03-24","一般会员单位",2000]
["上海蓝之创智能科技有限公司",0,null,"一般会员单位",2000]
["国网冀北电力有限公司计量中心",0,null,"一般会员单位",2000]
["常州普华智能技术有限公司",0,null,"一般会员单位",2000]
["广州多浦乐电子科技股份有限公司",0,null,"一般会员单位",2000]
["安徽倍西自动化仪表有限公司",0,null,"一般会员单位",2000]
["浙江美硕电气科技股份有限公司",0,null,"一般会员单位",2000]
["河北润旺达洁具制造有限公司",2000,"2022-03-21","一般会员单位",2000]
["河北赛阳网络技术有限公司",2000,"2022-01-04","一般会员单位",2000]
["北京宝德仪器有限公司",0,null,"一般会员单位",2000]
["武汉谱晰科技有限公司",2000,"2022-03-09","一般会员单位",2000]
["航天亮丽电气有限责任公司",2000,"2022-03-10","一般会员单位",2000]
["力合科技（湖南）股份有限公司",2000,"2022-03-21","一般会员单位",2000]
["上海屹尧仪器科技发展有限公司",2000,"2022-03-03","一般会员单位",2000]
["上海绿蒂智能科技有限公司",0,null,"一般会员单位",2000]
["上海尚材试验机有限公司",0,null,"一般会员单位",2000]
["吉林省建研科技有限责任公司",2000,"2022-03-29","一般会员单位",2000]
["湖北南控仪表科技有限公司",0,null,"一般会员单位",2000]
["浙江至控科技有限公司",2000,"2022-04-18","一般会员单位",2000]
["浙江福立分析仪器股份有限公司",0,null,"一般会员单位",2000]
["上海知楚仪器有限公司",2000,"2022-03-07","一般会员单位",2000]
["四川鸿进达卫生技术服务有限公司",0,null,"一般会员单位",2000]
["华东师范大学",0,null,"一般会员单位",2000]
["苏州英示测量科技有限公司",2000,"2022-03-03","一般会员单位",2000]
["上海光学仪器五厂有限公司",2000,"2022-03-18","一般会员单位",2000]
["深圳星之球广告有限公司",0,null,"一般会员单位",2000]
["北京领航力嘉机电有限公司",0,null,"一般会员单位",2000]
["上海睿钰生物科技有限公司",2000,"2022-02-28","一般会员单位",2000]
["海拓仪器（江苏）有限公司",2000,"2022-03-11","一般会员单位",2000]
["江苏国技仪器有限公司",2000,"2022-01-21","一般会员单位",2000]
["杭州仰仪科技有限公司",2000,"2022-03-07","一般会员单位",2000]
["合肥富煌君达高科信息技术有限公司",2000,"2022-01-21","一般会员单位",2000]
["杭州志达光电有限公司",2000,"2022-03-03","一般会员单位",2000]
["意拉德电子(东莞)有限公司",0,null,"一般会员单位",2000]
["北京前景无忧电子科技有限公司",2000,"2022-03-09","一般会员单位",2000]
["青岛众瑞智能仪器股份有限公司",0,null,"一般会员单位",2000]
["江阴市星火电子科技有限公司",2000,"2022-03-24","一般会员单位",2000]
["山东智慧生活数据系统有限公司",0,null,"一般会员单位",2000]
["深圳市瑞沃德生命科技有限公司",0,null,"一般会员单位",2000]
["无锡迅杰光远科技有限公司",2000,"2022-03-07","一般会员单位",2000]
["中检计量有限公司",0,null,"一般会员单位",2000]
["扬州天辉实验室装备环保工程有限公司",0,null,"一般会员单位",2000]
["陕西鹏展科技有限公司",2000,"2022-03-07","一般会员单位",2000]
["华中科技大学实验室与设备管理处",0,null,"一般会员单位",2000]
["北京标记万物科技有限公司",0,null,"一般会员单位",2000]
["云南能投达诺智能科技发展有限公司",0,null,"一般会员单位",2000]
["成都瑞利实验设备有限公司",0,null,"一般会员单位",2000]
["北京朗普展览有限公司",0,null,"一般会员单位",2000]
["上海沪辰自动化系统工程有限公司",0,null,"一般会员单位",2000]
["北京库巴扎信息科技有限公司",0,null,"一般会员单位",2000]
["上海同安智能科技有限公司",0,null,"一般会员单位",2000]
["艾斯珂智能科技（深圳）有限公司",0,null,"一般会员单位",2000]
["上海敦阳流体设备有限公司",0,null,"一般会员单位",2000]
["深圳市朗石科学仪器有限公司",2000,"2022-04-02","一般会员单位",2000]
["北京盛元广通科技有限公司",0,null,"一般会员单位",2000]
["苏州极点科技有限公司",0,null,"一般会员单位",2000]
["无锡百泰克生物技术有限公司",0,null,"一般会员单位",2000]
["昆山书豪仪器科技有限公司",2000,"2022-03-21","一般会员单位",2000]
["南京拓服工坊科技有限公司",2000,"2022-04-07","一般会员单位",2000]
["宁波中车时代传感技术有限公司",2000,"2022-04-15","一般会员单位",2000]
["武汉奥特多电子科技有限公司",2000,"2022-05-18","一般会员单位",2000]
["湖北万测试验设备有限公司",2000,"2022-04-02","一般会员单位",2000]
["江苏横河集团有限公司",2000,"2022-03-07","一般会员单位",2000]
["北京京仪高科仪器有限公司",2000,"2022-03-10","一般会员单位",2000]
["武汉奥威特自动化设备有限公司",0,null,"一般会员单位",2000]
["中国天辰工程有限公司",0,null,"一般会员单位",2000]
["珠海昊星自动化系统有限公司",0,null,"一般会员单位",2000]
["重庆大学实验室及设备管理处",0,null,"一般会员单位",2000]
["中国矿业大学实验室与设备管理处",0,null,"一般会员单位",2000]
["郑州大学实验室管理中心",0,null,"一般会员单位",2000]
["浙江大学实验室与设备管理处",0,null,"一般会员单位",2000]
["云南大学资产与实验室管理处",0,null,"一般会员单位",2000]
["西湖大学资产部",0,null,"一般会员单位",2000]
["武汉理工大学实验室与设备管理处",2000,"2022-03-07","一般会员单位",2000]
["武汉大学实验室与设备管理处",0,null,"一般会员单位",2000]
["天津市晟科思科技发展有限公司",0,null,"一般会员单位",2000]
["天津大学资产与实验室管理处",0,null,"一般会员单位",2000]
["太原理工大学",0,null,"一般会员单位",2000]
["苏州顶裕节能设备有限公司",0,null,"一般会员单位",2000]
["四川大学实验室与设备管理处",0,null,"一般会员单位",2000]
["上海荀郡科技有限公司",0,null,"一般会员单位",2000]
["上海穆嘉传感科技有限公司",0,null,"一般会员单位",2000]
["上海瀚广实业有限公司",0,null,"一般会员单位",2000]
["上海大学实验室与设备管理处",0,null,"一般会员单位",2000]
["山西大学",0,null,"一般会员单位",2000]
["厦门大学实验室与设备管理处",0,null,"一般会员单位",2000]
["赛鼎工程有限公司",0,null,"一般会员单位",2000]
["南京博森科技有限公司",0,null,"一般会员单位",2000]
["南方医科大学实验室与设备管理处",0,null,"一般会员单位",2000]
["南昌大学国有资产与实验室管理处",0,null,"一般会员单位",2000]
["吉林大学实验室管理处",0,null,"一般会员单位",2000]
["华东理工大学实验室与装备处",0,null,"一般会员单位",2000]
["湖南师范大学资产与实验室管理处",0,null,"一般会员单位",2000]
["河南省朗硕电力科技有限公司",0,null,"一般会员单位",2000]
["河北大学综合实验中心",0,null,"一般会员单位",2000]
["海南大学实验室与设备管理处",0,null,"一般会员单位",2000]
["北京山水云图科技有限公司",0,null,"一般会员单位",2000]
["北京赫安辐源环境科技有限公司",0,null,"一般会员单位",2000]
["中科院上海巴斯德研究所",0,null,"一般会员单位",2000]
["青天伟业仪器仪表有限公司",2000,"2022-03-29","一般会员单位",2000]
["慧物云通（深圳）科技有限公司",0,null,"一般会员单位",2000]
["无锡冠亚恒温制冷技术有限公司",2000,"2022-05-18","一般会员单位",2000]
["南京霍普斯科技有限公司",2000,"2022-04-02","一般会员单位",2000]
["烟台开发区奥特仪表制造有限公司",2000,"2022-04-07","一般会员单位",2000]
["广州零壹智联科技有限公司",2000,"2022-04-13","一般会员单位",2000]
["北京东方迪格信息技术有限公司",0,null,"一般会员单位",2000]
["上海踏石贸易有限公司",0,null,"一般会员单位",2000]
["广州一区科技有限公司",0,null,"一般会员单位",2000]
["北京大学实验室与设备管理部",0,null,"一般会员单位",2000]
["昭和电工科学仪器（上海）有限公司",2000,"2022-06-22","一般会员单位",2000]
["北京国信晟通科技发展有限公司",0,null,"一般会员单位",2000]
["江苏省环境监测中心",0,null,"一般会员单位",2000]
["中钢（南京）生态环境技术研究院有限公司",0,null,"一般会员单位",2000]
["深圳市诺安智能股份有限公司",0,null,"一般会员单位",2000]
["广西大学国有资产与实验室管理处",0,null,"一般会员单位",2000]
["苏州大学",0,null,"一般会员单位",2000]
["山东师范大学实验室设备管理处",0,null,"一般会员单位",2000]
["贵州大学实验室与设备管理处",0,null,"一般会员单位",2000]
["北京理工大学资产与实验室管理处",0,null,"一般会员单位",2000]
["天俱时工程科技集团有限公司上海分公司",0,null,"一般会员单位",2000]
["安徽省医药设计院",0,null,"一般会员单位",2000]
["西安近代化学研究所",0,null,"一般会员单位",2000]
["上海德卡实验室系统科技有限公司",0,null,"一般会员单位",2000]
["宁波阶梯教育科技有限公司",2000,"2022-03-03","一般会员单位",2000]
["杭州科洛生物技术有限公司",0,null,"一般会员单位",2000]
["上海固银实业有限公司",0,null,"一般会员单位",2000]
["广东科劳斯实验室系统科技股份有限公司",0,null,"一般会员单位",2000]
["江苏科仕达实验室环保科技有限公司",0,null,"一般会员单位",2000]
["上海树佳环保工程有限公司",0,null,"一般会员单位",2000]
["北京实安科技有限公司",0,null,"一般会员单位",2000]
["江苏拓米洛环境试验设备有限公司",2000,"2022-03-07","一般会员单位",2000]
["清华大学（实验室管理处）",0,null,"一般会员单位",2000]
["天津瀚海星云数字科技股份有限公司",0,null,"一般会员单位",2000]
["陕西师范大学实验室建设与管理处",0,null,"一般会员单位",2000]
["深圳市天创达科技有限公司",2000,"2022-03-09","一般会员单位",2000]
["同济大学建筑设计研究院有限公司",0,null,"一般会员单位",2000]
["中机试验装备（江苏）有限公司",2000,"2022-03-29","一般会员单位",2000]
["京源中科科技股份有限公司",2000,"2022-03-16","一般会员单位",2000]
["天津依诺诚科技有限公司",0,null,"一般会员单位",2000]
["江苏新道格自控科技有限公司",0,null,"一般会员单位",2000]
["浙江优纳特科学仪器有限公司",2000,"2022-03-18","一般会员单位",2000]
["浙江涵普电力科技有限公司",2000,"2022-03-03","一般会员单位",2000]
["浙江瑞银电子有限公司",2000,"2022-03-10","一般会员单位",2000]
["北京君达瑞科技有限公司",0,null,"一般会员单位",2000]
["西陇科学股份有限公司",2000,"2022-03-31","一般会员单位",2000]
["浙江东鸿电子股份有限公司",2000,"2022-03-03","一般会员单位",2000]
["深圳市智越盛电子科技有限公司",2000,"2022-03-03","一般会员单位",2000]
["容创未来(天津）新能源有限公司",0,null,"一般会员单位",2000]
["中山市三易测量仪器有限公司",0,null,"一般会员单位",2000]
["余姚市三力信电磁阀有限公司",2000,"2022-03-10","一般会员单位",2000]
["北京东土科技股份有限公司",2000,"2022-03-09","一般会员单位",2000]
["成都大正海威尔控制阀有限公司",2000,"2022-03-03","一般会员单位",2000]
["科伦伯特电缆（江苏）有限公司",2000,"2022-03-09","一般会员单位",2000]
["美卓伦仪表（常州）有限公司",2000,"2022-03-03","一般会员单位",2000]
["江苏博克斯科技股份有限公司",2000,"2022-03-07","一般会员单位",2000]
["奥煌检测技术服务（上海）有限公司",0,null,"一般会员单位",2000]
["上海元析仪器有限公司",2000,"2022-03-03","一般会员单位",2000]
["芯视界（北京）科技有限公司",2000,"2022-04-24","一般会员单位",2000]
["彩科（苏州）生物科技有限公司",2000,"2022-02-28","一般会员单位",2000]
["济南新三思动态试验技术有限公司",0,null,"一般会员单位",2000]
["上海四达电子仪表有限公司",2000,"2022-03-03","一般会员单位",2000]
["新疆大学实验室与设备管理处",0,null,"一般会员单位",2000]
["合肥工业大学实验室安全管理处",0,null,"一般会员单位",2000]
["扬州大学实验室环保与智能装备研究所",0,null,"一般会员单位",2000]
["内蒙古光能科技有限公司",0,null,"一般会员单位",2000]
["天津智易时代科技发展有限公司",2000,"2022-04-02","一般会员单位",2000]
["北京京仪自动化技术研究院有限公司",0,null,"一般会员单位",2000]
["北京北仪创新真空技术有限责任公司",0,null,"理事单位",5000]
["安徽皖仪科技股份有限公司",2000,"2022-04-07","一般会员单位",2000]
["唯美创研水处理技术（北京）有限公司",0,null,"一般会员单位",2000]
["金华市蓝海光电技术有限公司",0,null,"一般会员单位",2000]
["吉林省泽源能效工程有限公司",0,null,"一般会员单位",2000]
["北京华仪通泰环保科技有限公司",2000,"2022-05-18","一般会员单位",2000]
["莱州市蔚仪试验器械制造有限公司",0,null,"一般会员单位",2000]
["山东创辰物联科技有限公司",0,null,"一般会员单位",2000]
["上海千居智科技有限公司",0,null,"一般会员单位",2000]
["鞍山安扎电子有限公司",2000,"2022-05-18","一般会员单位",2000]
["哈尔滨普伦科技有限公司",0,null,"一般会员单位",2000]
["广州市爱宕科学仪器有限公司",0,null,"一般会员单位",2000]
["微芯商贸（上海）有限公司",0,null,"一般会员单位",2000]
["谱质分析检测技术（上海）有限公司",0,null,"一般会员单位",2000]
["广州智汇生物科技有限公司",0,null,"一般会员单位",2000]
["浙江斯瑞特电子科技有限公司",0,null,"一般会员单位",2000]
["广东东南科创科技有限公司",2000,"2022-03-09","一般会员单位",2000]
["广州市沃誉自动化科技有限公司",2000,"2022-06-07","一般会员单位",2000]
["杭州富睿捷科技有限公司",2000,"2022-04-28","一般会员单位",2000]
["深圳市三恩时科技有限公司",2000,"2022-05-18","一般会员单位",2000]
["浙江浙大鸣泉科技有限公司",2000,"2022-05-18","一般会员单位",2000]
["远东测振（北京）系统工程技术有限公司",0,null,"一般会员单位",2000]
["北京自动化仪表二厂",0,null,"一般会员单位",2000]
["北京京仪海福尔自动化仪表有限公司",0,null,"一般会员单位",2000]
["北京自动化控制设备厂",2000,"2022-04-13","一般会员单位",2000]
["北京远东仪表有限公司",0,null,"理事单位",5000]
["清华大学微电子学研究所",0,null,"一般会员单位",2000]
["北京泰克仪器有限公司",0,null,"一般会员单位",2000]
["北京中科科仪股份有限公司",0,null,"理事单位",5000]
["北京海光仪器有限公司",5000,"2022-03-07","常务理事单位",5000]
["北京青云精益检测设备有限公司",0,null,"理事单位",5000]
["时代集团公司",0,null,"一般会员单位",2000]
["北京中技克美谐波传动股份有限公司",0,null,"一般会员单位",2000]
["京仪自动化系统工程研究设计院有限公司",0,null,"一般会员单位",2000]
["中国计量科学研究院电磁所",0,null,"一般会员单位",2000]
["北京金自天正智能控制股份有限公司",0,null,"一般会员单位",2000]
["北京机械工业自动化研究所",0,null,"一般会员单位",2000]
["清华大学精密仪器与机械学系",0,null,"特邀理事单位",0]
["北京京仪集团有限责任公司",0,null,"副理事长单位",20000]
["中国石油和化工自动化应用协会",0,null,"特邀理事单位",0]
["中国测绘学会",0,null,"一般会员单位",2000]
["北京航天易联科技发展有限公司",0,null,"一般会员单位",2000]
["中国教育装备行业协会",0,null,"特邀理事单位",0]
["机械工业仪器仪表综合技术经济研究所",0,null,"副理事长单位",20000]
["北京京仪北方仪器仪表有限公司",2000,"2022-03-16","一般会员单位",2000]
["北京边华电化学分析仪器有限公司",0,null,"一般会员单位",2000]
["北京赛多利斯天平有限公司",0,null,"一般会员单位",2000]
["北京中航机电研究所",0,null,"一般会员单位",2000]
["北京七星华创流量计有限公司",2000,"2022-03-03","一般会员单位",2000]
["北京普析通用仪器有限责任公司",0,null,"理事单位",5000]
["北京华控技术有限责任公司",0,null,"理事单位",5000]
["和利时科技集团有限公司",0,null,"副理事长单位",20000]
["清华大学自动化系",0,null,"一般会员单位",2000]
["中国机电产品进出口商会仪器仪表分会",0,null,"特邀理事单位",0]
["航天长征火箭技术有限公司",0,null,"一般会员单位",2000]
["北京拓川科研设备股份有限公司",0,null,"一般会员单位",2000]
["北京交通大学机电学院",0,null,"一般会员单位",2000]
["北京瑞普三元仪表有限公司",0,null,"理事单位",5000]
["福禄克测试仪器(上海)有限公司",0,null,"一般会员单位",2000]
["北京威远图易数字科技有限公司",0,null,"一般会员单位",2000]
["钢研纳克检测技术股份有限公司",0,null,"常务理事单位",5000]
["北京拓普康商贸有限公司",0,null,"一般会员单位",2000]
["北京海湾智能仪表有限公司",0,null,"一般会员单位",2000]
["北京国电智深控制技术有限公司",0,null,"一般会员单位",2000]
["北京市华元气体化工有限公司",0,null,"一般会员单位",2000]
["中测国检（北京）测绘仪器检测中心",0,null,"一般会员单位",2000]
["北京晟德瑞环境技术有限公司",0,null,"一般会员单位",2000]
["厚礼博精密仪器（北京）有限公司",0,null,"一般会员单位",2000]
["北京市华云分析仪器研究所有限公司",0,null,"一般会员单位",2000]
["北京科萨阀门技术服务有限责任公司",0,null,"一般会员单位",2000]
["北京中兴伟业仪器有限公司",0,null,"一般会员单位",2000]
["北京吉天仪器有限公司",2000,"2022-03-07","理事单位",5000]
["北京华夏科创仪器股份有限公司",0,null,"理事单位",5000]
["北京东西分析有限公司",0,null,"理事单位",5000]
["北京康吉森自动化技术股份有限公司",20000,"2022-06-22","副理事长单位",20000]
["北京熊川阀门制造有限公司",0,null,"一般会员单位",2000]
["北京清木源科技发展有限公司",0,null,"一般会员单位",2000]
["北京普源精电科技有限公司",0,null,"一般会员单位",2000]
["莱茵检测认证服务（中国）有限公司",0,null,"一般会员单位",2000]
["北京英华达电力电子工程科技有限公司",0,null,"一般会员单位",2000]
["北京百晶生物技术有限公司",0,null,"一般会员单位",2000]
["北京六一生物科技有限公司",5000,"2022-03-07","理事单位",5000]
["北京光学仪器厂有限公司",0,null,"一般会员单位",2000]
["中国航空工业集团有限公司",0,null,"一般会员单位",2000]
["徕卡测量系统贸易（北京）有限公司",0,null,"一般会员单位",2000]
["北京北分瑞利分析仪器(集团)有限责任公司",0,null,"一般会员单位",2000]
["仪玛电能测量技术（北京）有限公司",0,null,"一般会员单位",2000]
["北京中翰仪器有限公司上海分公司",0,null,"一般会员单位",2000]
["北京北斗星通导航技术股份有限公司",0,null,"一般会员单位",2000]
["北京京立离心机有限公司",0,null,"一般会员单位",2000]
["北京君意东方电泳设备有限公司",0,null,"一般会员单位",2000]
["北京浩天晖仪器有限公司",0,null,"一般会员单位",2000]
["北京先驱威锋技术开发公司",0,null,"一般会员单位",2000]
["北京京仪科技孵化器有限公司",0,null,"理事单位",5000]
["西克麦哈克（北京）仪器有限公司",0,null,"理事单位",5000]
["北京中富瑞科技发展有限公司",0,null,"一般会员单位",2000]
["北京康斯特仪表科技股份有限公司",20000,"2022-03-03","副理事长单位",20000]
["北京瑞拓江南自控设备有限公司",0,null,"一般会员单位",2000]
["北京布莱迪仪器仪表有限公司",0,null,"一般会员单位",2000]
["北京康泰威尔科技有限公司",0,null,"一般会员单位",2000]
["北京雪迪龙科技股份有限公司",0,null,"常务理事单位",5000]
["北京中晟泰科环境科技发展有限责任公司",0,null,"一般会员单位",2000]
["北京航天益来电子科技有限公司",0,null,"一般会员单位",2000]
["北京市西比仪器有限责任公司",0,null,"一般会员单位",2000]
["北京中模医疗科技有限公司",0,null,"一般会员单位",2000]
["北京晓程科技股份有限公司",0,null,"一般会员单位",2000]
["中国电力科学研究院通信与用电技术分公司",0,null,"一般会员单位",2000]
["北京化工大学",0,null,"一般会员单位",2000]
["北京英斯路科技有限公司",0,null,"一般会员单位",2000]
["北京平和创业科技发展有限公司",0,null,"一般会员单位",2000]
["华瑞科力恒(北京)科技有限公司",0,null,"一般会员单位",2000]
["中广核核技术发展股份有限公司",0,null,"理事单位",5000]
["北京玻璃研究院",0,null,"一般会员单位",2000]
["安泰科技股份有限公司",0,null,"一般会员单位",2000]
["中国昆仑工程公司",0,null,"一般会员单位",2000]
["物博中仪(北京)仪表有限公司",0,null,"一般会员单位",2000]
["北京煜邦电力技术股份有限公司",5000,"2022-03-03","理事单位",5000]
["北京航空技术交流服务中心有限责任公司",0,null,"一般会员单位",2000]
["北京新宇航测控科技股份有限公司",0,null,"一般会员单位",2000]
["北京理工大学机电学院",0,null,"一般会员单位",2000]
["中冶建筑研究总院有限公司",0,null,"一般会员单位",2000]
["北京瑞普三元仪表有限公司压力仪表分公司",0,null,"一般会员单位",2000]
["北京信息科技大学仪器科学与光电工程学院",0,null,"一般会员单位",2000]
["清华大学精密仪器与机械系精密测试技术与仪器国家重点实验室",0,null,"一般会员单位",2000]
["北侧宏图科技(北京)有限公司",0,null,"一般会员单位",2000]
["北京华辰北斗信息技术有限公司",0,null,"一般会员单位",2000]
["中国科学院生物物理研究所",0,null,"一般会员单位",2000]
["中国人民解放军军事医学科学院实验室仪器厂",0,null,"一般会员单位",2000]
["北京数联空间科技股份有限公司",0,null,"一般会员单位",2000]
["北京合众思壮科技股份有限公司",0,null,"一般会员单位",2000]
["天宝寰宇电子产品(上海)有限公司",0,null,"一般会员单位",2000]
["北京北科天绘科技有限公司",0,null,"一般会员单位",2000]
["北京顺徕基业测量系统科技有限公司",0,null,"一般会员单位",2000]
["北京咏归科技有限公司",0,null,"一般会员单位",2000]
["北斗天汇(北京)科技有限公司",0,null,"一般会员单位",2000]
["北京信立方科技发展股份有限公司",0,null,"理事单位",5000]
["北京市仪器仪表高级技工学校",0,null,"一般会员单位",2000]
["华欧汇智(北京)科技有限公司",0,null,"一般会员单位",2000]
["北京博乾国际会展服务有限公司",0,null,"一般会员单位",2000]
["倍加福(北京)过程自动化控制设备有限公司",0,null,"一般会员单位",2000]
["北京有色金属研究总院",0,null,"一般会员单位",2000]
["奥腾思格玛（中国）集团有限公司",0,null,"一般会员单位",2000]
["北京朝阳华洋分析仪器有限公司",0,null,"一般会员单位",2000]
["与正仪器(深圳)有限公司",0,null,"一般会员单位",2000]
["北京安合美诚科学仪器有限公司",0,null,"一般会员单位",2000]
["北京华科仪科技股份有限公司",5000,"2022-03-07","常务理事单位",5000]
["哈希水质分析仪器(上海)有限公司",0,null,"一般会员单位",2000]
["华测检测认证集团北京有限公司",0,null,"一般会员单位",2000]
["川北真空科技(北京)有限公司",0,null,"一般会员单位",2000]
["北京天地首和科技发展有限公司",0,null,"一般会员单位",2000]
["中航国际航空发展有限公司",0,null,"一般会员单位",2000]
["北京星达科技发展有限公司",0,null,"一般会员单位",2000]
["北京易艾斯德科技有限公司",0,null,"一般会员单位",2000]
["安特百科（北京）技术发展有限公司",0,null,"一般会员单位",2000]
["北京精微高博科学技术有限公司",0,null,"一般会员单位",2000]
["北京科学仪器装备协作服务中心",0,null,"一般会员单位",2000]
["爱普生(中国)有限公司",0,null,"一般会员单位",2000]
["北京融通高科科技发展有限公司",0,null,"一般会员单位",2000]
["北京博纳电气股份有限公司",2000,"2022-03-07","一般会员单位",2000]
["北京中仪大珩科技服务有限公司",0,null,"一般会员单位",2000]
["北京古大仪表有限公司",2000,"2022-03-03","一般会员单位",2000]
["北京市海淀区北斗星工业化学研究所",0,null,"一般会员单位",2000]
["拓普康(北京)科技发展有限公司",0,null,"一般会员单位",2000]
["大龙兴创实验仪器(北京)有限公司",0,null,"一般会员单位",2000]
["北京历元仪器设备有限公司",0,null,"一般会员单位",2000]
["天健创新（北京）监测仪表股份有限公司",0,null,"一般会员单位",2000]
["滨松光子学商贸(中国)有限公司",0,null,"一般会员单位",2000]
["北京宜能石油科技有限公司",0,null,"一般会员单位",2000]
["北京凌河机电有限公司",0,null,"一般会员单位",2000]
["北京明尼克分析仪器设备中心",0,null,"一般会员单位",2000]
["哈纳沃德仪器（北京）有限公司",0,null,"一般会员单位",2000]
["北京普立泰科仪器有限公司",0,null,"一般会员单位",2000]
["中仪标化（北京）仪器仪表技术研究院有限公司",0,null,"一般会员单位",2000]
["北京中检维康生物技术有限公司",0,null,"一般会员单位",2000]
["北京中发天交电子市场有限责任公司",0,null,"一般会员单位",2000]
["北京海克斯科技有限公司",0,null,"一般会员单位",2000]
["磐研群创（北京）科技有限公司",0,null,"一般会员单位",2000]
["天美仪拓实验室设备（上海）有限公司",0,null,"常务理事单位",5000]
["仪众宏鑫（北京）国际贸易有限责任公司",0,null,"一般会员单位",2000]
["北京市大西洋仪器工程有限责任公司",0,null,"一般会员单位",2000]
["北京理化分析测试技术学会",0,null,"一般会员单位",2000]
["赛伯乐（北京）仪器有限公司",0,null,"一般会员单位",2000]
["北京维德维康生物技术有限公司",0,null,"一般会员单位",2000]
["北京好利阀业集团有限公司",0,null,"一般会员单位",2000]
["北京赛必达科技有限公司",0,null,"一般会员单位",2000]
["北京勤邦生物技术有限公司",0,null,"一般会员单位",2000]
["北京金剑之光医药信息技术中心",0,null,"一般会员单位",2000]
["北京普赞生物技术有限公司",0,null,"一般会员单位",2000]
["北京倍肯恒业科技发展股份有限公司",0,null,"一般会员单位",2000]
["北京智云达科技股份有限公司",0,null,"理事单位",5000]
["北京安达兴业科技有限公司",0,null,"一般会员单位",2000]
["力德力诺生物技术（北京）有限公司",0,null,"一般会员单位",2000]
["北京亚圣智库科技有限公司",0,null,"一般会员单位",2000]
["北京六角体科技发展有限公司",0,null,"一般会员单位",2000]
["普菲特益斯生物科技（北京）有限公司",0,null,"一般会员单位",2000]
["北京康安森仪表技术有限公司",0,null,"一般会员单位",2000]
["北京大方科技有限责任公司",0,null,"一般会员单位",2000]
["金西盟（北京）仪器有限公司",0,null,"一般会员单位",2000]
["北京智邦国际软件技术有限公司",0,null,"一般会员单位",2000]
["北京万联达信科仪器有限公司",0,null,"一般会员单位",2000]
["机械工业分析仪器产品质量监督检测中心",0,null,"一般会员单位",2000]
["恒信大友（北京）科技有限公司",0,null,"一般会员单位",2000]
["北京世纪建通科技股份有限公司",0,null,"一般会员单位",2000]
["北京瑞风协同科技股份有限公司",0,null,"一般会员单位",2000]
["北京科翔仪表有限公司",2000,"2022-04-21","一般会员单位",2000]
["北京瑞普三元计装科技有限公司",0,null,"理事单位",5000]
["赛莱默分析仪器（北京）有限公司",0,null,"一般会员单位",2000]
["北京鼎实创新科技股份有限公司",0,null,"一般会员单位",2000]
["施耐德电气（中国）有限公司",0,null,"一般会员单位",2000]
["艾力塔（北京）仪器仪表有限公司",0,null,"一般会员单位",2000]
["北京热景生物技术股份有限公司",0,null,"一般会员单位",2000]
["北京市腾河智慧能源科技有限公司",2000,"2022-03-07","一般会员单位",2000]
["西派特（北京）科技有限公司",0,null,"一般会员单位",2000]
["北京东南仪诚实验室设备有限公司",0,null,"一般会员单位",2000]
["北京华海骏业科技发展有限公司",0,null,"一般会员单位",2000]
["中检环贸生物技术（北京）有限公司",0,null,"一般会员单位",2000]
["北京航天长征机械设备制造有限公司",2000,"2022-03-09","一般会员单位",2000]
["北京信汇嘉诚科技有限公司",0,null,"一般会员单位",2000]
["北京中天荣泰科技发展有限公司",0,null,"一般会员单位",2000]
["北京中北华建实验室装饰工程有限公司",0,null,"一般会员单位",2000]
["中仪信科（北京）科技有限公司",0,null,"一般会员单位",2000]
["中环天仪股份有限公司",0,null,"副理事长单位",20000]
["天津精通控制仪表技术有限公司",0,null,"一般会员单位",2000]
["天津工业自动化仪表研究所有限公司",0,null,"一般会员单位",2000]
["天津大学精密仪器与光电子工程学院",0,null,"特邀理事单位",0]
["天津中环电子信息集团有限公司",0,null,"一般会员单位",2000]
["天津市中环温度仪表有限公司",5000,"2022-03-03","理事单位",5000]
["天津欧波精密仪器股份有限公司",0,null,"一般会员单位",2000]
["天津中控仪表系统有限公司",0,null,"一般会员单位",2000]
["中环天仪（天津）气象仪器有限公司",0,null,"理事单位",5000]
["威森智能控制技术股份有限公司",0,null,"一般会员单位",2000]
["天津欧迪仪表科技开发有限公司",0,null,"一般会员单位",2000]
["天津津伯仪表技术有限公司",0,null,"一般会员单位",2000]
["天津汇丰探测装备有限公司",0,null,"一般会员单位",2000]
["天津纽泰克自控仪表有限公司",0,null,"一般会员单位",2000]
["中沙(天津)石化有限公司",0,null,"一般会员单位",2000]
["天津市津天温度仪表科技有限公司",0,null,"一般会员单位",2000]
["天津市申特电力电子有限公司",0,null,"一般会员单位",2000]
["天津赛特测机有限公司",0,null,"一般会员单位",2000]
["天津宝恒流体控制设备股份有限公司",0,null,"一般会员单位",2000]
["天津市三环电阻有限公司",0,null,"一般会员单位",2000]
["天津艾杰尔科技有限公司",0,null,"一般会员单位",2000]
["天津三和电机有限公司",0,null,"一般会员单位",2000]
["天津凯英科技发展股份有限公司",0,null,"一般会员单位",2000]
["天津市迅尔仪表科技有限公司",5000,"2022-03-07","理事单位",5000]
["天津市兰博实验仪器设备有限公司",0,null,"一般会员单位",2000]
["天津市金贝尔科技有限公司",0,null,"一般会员单位",2000]
["天津搜科网拓科技有限公司",0,null,"一般会员单位",2000]
["天津博硕东创科技发展有限公司",0,null,"一般会员单位",2000]
["天津万华电子仪表有限公司",0,null,"一般会员单位",2000]
["承德热河克罗尼仪表有限公司",0,null,"理事单位",5000]
["河北宏业永泰流体机械股份有限公司",0,null,"理事单位",5000]
["河北理工大学智能仪器厂",0,null,"一般会员单位",2000]
["河北申科电子股份有限公司",0,null,"一般会员单位",2000]
["河北冀雅电子有限公司",0,null,"一般会员单位",2000]
["承德市精密试验机有限公司",2000,"2022-03-07","一般会员单位",2000]
["河北省仪表行业协会",0,null,"一般会员单位",2000]
["邯郸市华宇仪器仪表有限责任公司",0,null,"一般会员单位",2000]
["河北科瑞达仪器科技股份有限公司",0,null,"一般会员单位",2000]
["河北双剑机械制造股份有限公司",0,null,"一般会员单位",2000]
["邢台新光实业有限责任公司",0,null,"一般会员单位",2000]
["汇中仪表股份有限公司",0,null,"一般会员单位",2000]
["石家庄科林电气股份有限公司",0,null,"一般会员单位",2000]
["河北美泰电子科技有限公司",0,null,"一般会员单位",2000]
["秦皇岛嘉隆玻璃有限公司",0,null,"一般会员单位",2000]
["河北先河环保科技股份有限公司",5000,"2022-04-28","理事单位",5000]
["河北伊诺光学科技股份有限公司",0,null,"一般会员单位",2000]
["河北光德精密机械股份有限公司",2000,"2022-04-28","一般会员单位",2000]
["承德市金建检测仪器有限公司",0,null,"一般会员单位",2000]
["河北赛斯科学仪器进出口有限公司",0,null,"一般会员单位",2000]
["廊坊电力传感技术有限公司",0,null,"一般会员单位",2000]
["太原太航科技有限公司",5000,"2022-03-10","理事单位",5000]
["阳泉仪表有限责任公司",0,null,"一般会员单位",2000]
["沈阳创原计量仪器有限公司",0,null,"一般会员单位",2000]
["北方智能装备有限公司",0,null,"一般会员单位",2000]
["大连依利特分析仪器有限公司",0,"2022-03-11","常务理事单位",5000]
["中国科学院沈阳自动化研究所",0,null,"常务理事单位",5000]
["鞍山工装自控仪表有限公司",0,null,"一般会员单位",2000]
["大连正大仪器仪表有限公司",0,null,"一般会员单位",2000]
["鞍山自控仪表股份有限公司",0,null,"一般会员单位",2000]
["丹东热工仪表有限公司",0,null,"理事单位",5000]
["鞍山电磁阀有限责任公司",0,null,"一般会员单位",2000]
["丹东奥龙射线仪器集团有限公司",0,null,"常务理事单位",5000]
["阜新晟科传感器有限责任公司",0,null,"一般会员单位",2000]
["辽阳文圣仪表有限公司",0,null,"一般会员单位",2000]
["辽宁省仪器仪表有限责任公司",0,null,"一般会员单位",2000]
["沈阳仪表科学研究院有限公司",0,null,"副理事长单位",20000]
["辽宁仪表研究所有限责任公司",0,null,"一般会员单位",2000]
["辽宁机电职业技术学院",0,null,"一般会员单位",2000]
["沈阳市东联热工仪表有限公司",0,null,"一般会员单位",2000]
["沈阳东大传感技术有限公司",0,null,"一般会员单位",2000]
["沈阳龙腾电子有限公司",2000,"2022-04-15","一般会员单位",2000]
["辽宁科瑞色谱技术有限公司",0,null,"一般会员单位",2000]
["辽阳富士仪表有限公司",0,null,"一般会员单位",2000]
["丹东通博电器（集团）有限公司",5000,"2022-04-02","理事单位",5000]
["丹东华通测控有限公司",0,null,"一般会员单位",2000]
["久茂自动化(大连)有限公司",2000,"2022-05-18","一般会员单位",2000]
["丹东东方测控技术股份有限公司",0,null,"一般会员单位",2000]
["沈阳文兴合金焊材有限公司",0,null,"一般会员单位",2000]
["沈阳合金材料有限公司",0,null,"一般会员单位",2000]
["中航工业沈阳发动机设计研究所",0,null,"一般会员单位",2000]
["丹东伊诺特电气有限公司",0,null,"一般会员单位",2000]
["沈阳市检验检测中心",0,null,"一般会员单位",2000]
["沈阳华光精密仪器股份有限公司",0,null,"一般会员单位",2000]
["大连理工大学电子科学与技术学院",0,null,"一般会员单位",2000]
["沈阳工业大学信息科学与工程学院",0,null,"一般会员单位",2000]
["沈阳中科博微科技股份有限公司",5000,"2022-03-03","理事单位",5000]
["沈阳鼓风机集团自动控制系统工程有限公司",0,null,"一般会员单位",2000]
["中国石油天然气股份有限公司设备故诊断技术中心",0,null,"一般会员单位",2000]
["大连石油仪器有限公司",0,null,"一般会员单位",2000]
["大连中嘉瑞霖流体技术科技有限公司",0,null,"一般会员单位",2000]
["沈阳鸿宇科技有限公司",0,null,"一般会员单位",2000]
["长春新试验机有限责任公司",0,null,"一般会员单位",2000]
["吉林吉化集团仪表有限责任公司",0,null,"一般会员单位",2000]
["中国科学院长春光学精密机械与物理研究所",0,null,"一般会员单位",2000]
["中机试验装备股份有限公司",0,null,"副理事长单位",20000]
["长春气象仪器研究所有限责任公司",0,null,"一般会员单位",2000]
["吉林大学电子科学与工程学院",0,null,"一般会员单位",2000]
["长春理工大学",0,null,"特邀理事单位",0]
["长春科新试验仪器有限公司",0,null,"一般会员单位",2000]
["中国科学院长春应用化学研究所",0,null,"一般会员单位",2000]
["长春吉大·小天鹅仪器有限公司",0,null,"一般会员单位",2000]
["哈尔滨电表仪器厂(集团)有限公司",0,null,"一般会员单位",2000]
["鸡西正强仪器仪表有限公司",0,null,"一般会员单位",2000]
["哈尔滨电工仪表研究所有限公司",20000,"2022-03-03","副理事长单位",20000]
["哈尔滨理工大学",0,null,"一般会员单位",2000]
["黑龙江省电工仪器仪表工程技术研究中心有限公司",0,null,"一般会员单位",2000]
["黑龙江天林科技有限公司",0,null,"一般会员单位",2000]
["哈尔滨汇鑫仪器仪表有限责任公司",0,null,"一般会员单位",2000]
["上海自动化仪表有限公司",0,null,"副理事长单位",20000]
["上海自动化仪表有限公司自动化仪表三厂",0,null,"一般会员单位",2000]
["上海自动化仪表有限公司自动化仪表七厂",0,null,"理事单位",5000]
["上海自动化仪表有限公司自动化仪表九厂",0,null,"一般会员单位",2000]
["上海自动化仪表有限公司自动化仪表十一厂",0,null,"一般会员单位",2000]
["上海光华仪表有限公司",0,null,"理事单位",5000]
["上海光辉仪器仪表有限公司",0,null,"一般会员单位",2000]
["上海福克斯波罗有限公司",0,null,"一般会员单位",2000]
["上海金陵智能电表有限公司",2000,"2022-03-16","一般会员单位",2000]
["上海仪电科学仪器股份有限公司",0,null,"常务理事单位",5000]
["上海雄博精密仪器股份有限公司",0,null,"一般会员单位",2000]
["上海申联试验机厂有限公司",0,null,"一般会员单位",2000]
["上海超群检测科技股份有限公司",5000,"2022-03-03","理事单位",5000]
["上海实验仪器厂有限公司",0,null,"一般会员单位",2000]
["上海爱斯佩克环境设备有限公司",2000,"2022-06-22","一般会员单位",2000]
["上海安亭科学仪器厂",0,null,"理事单位",5000]
["上海工业自动化仪表研究院有限公司",0,null,"副理事长单位",20000]
["上海仪器仪表研究所",5000,"2022-03-11","理事单位",5000]
["上海光学仪器研究所",0,null,"常务理事单位",5000]
["上海理工大学机械工程学院",0,null,"一般会员单位",2000]
["上海仪器仪表行业协会",0,null,"一般会员单位",2000]
["中国仪器仪表学会管理科学分会",0,null,"一般会员单位",2000]
["上海光华·爱而美特仪器有限公司",0,null,"理事单位",5000]
["艾默生控制系统（上海）有限公司",0,null,"一般会员单位",2000]
["上海新华控制技术集团科技有限公司",0,null,"理事单位",5000]
["宁波联能仪表有限公司",0,null,"一般会员单位",2000]
["上海威尔泰工业自动化股份有限公司",0,null,"理事单位",5000]
["上海环球电气有限公司",0,null,"一般会员单位",2000]
["上海方欣实业有限公司",0,null,"一般会员单位",2000]
["上海亚泰仪表有限公司",0,null,"一般会员单位",2000]
["上海阀特流体控制阀门有限公司",0,null,"理事单位",5000]
["上海万迅仪表有限公司",0,null,"一般会员单位",2000]
["上海浦东荣丰科学仪器有限公司",0,null,"一般会员单位",2000]
["上海虹达仪器仪表厂有限公司",0,null,"一般会员单位",2000]
["上海一诺仪表有限公司",0,null,"理事单位",5000]
["上海华龙测试仪器有限公司",0,null,"常务理事单位",5000]
["上海申克机械有限公司",0,null,"理事单位",5000]
["上海天美科学仪器有限公司",5000,"2022-03-07","理事单位",5000]
["上海三洲自控仪表有限公司",0,null,"一般会员单位",2000]
["上海信东仪器仪表有限公司",0,null,"一般会员单位",2000]
["上海岗崎控制仪表有限公司",0,null,"一般会员单位",2000]
["上海模数仪表有限公司",0,null,"一般会员单位",2000]
["上海宝康电子控制工程有限公司",0,null,"一般会员单位",2000]
["上海凡宜科技电子有限公司",5000,"2022-03-07","理事单位",5000]
["上海横河电机有限公司",0,null,"一般会员单位",2000]
["上海华强仪表有限公司",0,null,"一般会员单位",2000]
["上海天能科技有限公司",0,null,"一般会员单位",2000]
["上海英孚特电子技术有限公司",0,null,"一般会员单位",2000]
["科讯（上海）咨询有限公司",0,null,"一般会员单位",2000]
["亚德诺半导体技术（上海）有限公司",0,null,"一般会员单位",2000]
["英斯特朗（上海）试验设备贸易有限公司",0,null,"一般会员单位",2000]
["高技国际计测器（上海）有限公司",0,null,"一般会员单位",2000]
["上海舜宇恒平科学仪器有限公司",0,null,"理事单位",5000]
["上海良平仪器仪表有限公司",0,null,"一般会员单位",2000]
["上海市离心机械研究所有限公司",0,null,"一般会员单位",2000]
["上海申狮物联网科技有限公司",0,null,"一般会员单位",2000]
["上海华测导航技术股份有限公司",0,null,"一般会员单位",2000]
["励精科技（上海）有限公司",0,null,"一般会员单位",2000]
["上海光学仪器六厂",0,null,"一般会员单位",2000]
["上海柯普乐自动化仪表有限公司",0,null,"一般会员单位",2000]
["上海民桥精密科学仪器有限公司",0,null,"一般会员单位",2000]
["贝加莱工业自动化（中国）有限公司",0,null,"一般会员单位",2000]
["上海神开石油化工装备股份有限公司",0,null,"理事单位",5000]
["上海耐奇自控工程有限公司",0,null,"一般会员单位",2000]
["上海辰竹仪表有限公司",0,null,"常务理事单位",5000]
["上海肯特仪表股份有限公司",0,null,"一般会员单位",2000]
["上海协霖电子有限公司",0,null,"一般会员单位",2000]
["上海朝辉压力仪器有限公司",0,null,"一般会员单位",2000]
["上海中核浦原有限公司",0,null,"一般会员单位",2000]
["上海寺冈电子有限公司",0,null,"一般会员单位",2000]
["上海格州电子股份有限公司",0,null,"一般会员单位",2000]
["上海北分科技股份有限公司",0,null,"理事单位",5000]
["上海海欣色谱仪器有限公司",0,null,"一般会员单位",2000]
["上海棱光技术有限公司",0,null,"一般会员单位",2000]
["上海兰宝传感科技股份有限公司",5000,"2022-03-07","常务理事单位",5000]
["上海金波弹性元件有限公司",0,null,"一般会员单位",2000]
["朗松珂利（上海）仪器仪表有限公司",0,null,"一般会员单位",2000]
["上海减压器厂有限公司",0,null,"一般会员单位",2000]
["欧智博德仪器仪表(上海）有限公司",0,null,"一般会员单位",2000]
["上海铼赛仪表有限公司",0,null,"一般会员单位",2000]
["上海星申仪表有限公司",0,null,"一般会员单位",2000]
["上海西派埃自动化科技有限公司",0,null,"一般会员单位",2000]
["上海东软载波微电子有限公司",0,null,"一般会员单位",2000]
["安科瑞电气股份有限公司",0,null,"一般会员单位",2000]
["上海贝岭股份有限公司",0,null,"一般会员单位",2000]
["钜泉光电科技(上海)股份有限公司",0,null,"一般会员单位",2000]
["上海人民企业集团工业电度表厂有限公司",0,null,"一般会员单位",2000]
["上海敏榆实业有限公司",0,null,"一般会员单位",2000]
["上海赛途仪器仪表有限公司",0,null,"一般会员单位",2000]
["上海思帝测量系统有限公司",0,null,"一般会员单位",2000]
["上海嘉翎仪表材料科技研究所",0,null,"一般会员单位",2000]
["上海廉贵金属材料有限公司",0,null,"一般会员单位",2000]
["上海奉义龙电子有限公司",0,null,"一般会员单位",2000]
["上海宽腾电子科技有限公司",0,null,"一般会员单位",2000]
["中国科学院上海微系统与信息技术研究所",0,null,"一般会员单位",2000]
["上海绎捷自动化科技有限公司",0,null,"一般会员单位",2000]
["上海司南卫星导航技术股份有限公司",0,null,"一般会员单位",2000]
["上海地海科技有限公司",2000,"2022-03-18","一般会员单位",2000]
["上海康比利仪表有限公司",2000,"2022-03-16","一般会员单位",2000]
["法兰克福展览(上海)有限公司",0,null,"一般会员单位",2000]
["上海友利仪器技术有限公司",0,null,"一般会员单位",2000]
["上海衡平仪器仪表有限公司",0,null,"一般会员单位",2000]
["威图电子机械技术(上海)有限公司",0,null,"一般会员单位",2000]
["上海兰典安全科技有限公司",0,null,"一般会员单位",2000]
["上海博卡实业有限公司",0,null,"一般会员单位",2000]
["上海开维喜集团股份有限公司",0,null,"一般会员单位",2000]
["纽托克流体控制有限公司",0,null,"一般会员单位",2000]
["凯维严苛阀门技术服务有限公司",0,null,"一般会员单位",2000]
["上海风雷自动化仪表有限公司",0,null,"一般会员单位",2000]
["上海博迅医疗生物仪器股份有限公司",0,null,"一般会员单位",2000]
["苏州纽迈分析仪器股份有限公司",0,null,"理事单位",5000]
["上海唐辉电子有限公司",0,null,"一般会员单位",2000]
["上海沛欧分析仪器有限公司",0,null,"一般会员单位",2000]
["上海置恒电气有限公司",0,null,"一般会员单位",2000]
["上海海得控制系统股份有限公司",0,null,"一般会员单位",2000]
["上海仪电分析仪器有限公司",2000,"2022-03-11","一般会员单位",2000]
["兹韦克罗睿试验机科技（上海）有限公司",0,null,"一般会员单位",2000]
["上海安杰环保科技股份有限公司",0,null,"一般会员单位",2000]
["上海美析仪器有限公司",0,null,"一般会员单位",2000]
["贺利氏(沈阳)特种光源有限公司",0,null,"一般会员单位",2000]
["上海立格仪表有限公司",0,null,"一般会员单位",2000]
["上海辰心仪表有限公司",0,null,"一般会员单位",2000]
["上海光谱仪器有限公司",0,null,"一般会员单位",2000]
["上海北裕分析仪器股份有限公司",0,null,"一般会员单位",2000]
["上海晨星光学仪器有限公司",0,null,"一般会员单位",2000]
["国家光学仪器质量监督检验中心",0,null,"一般会员单位",2000]
["全国光学和光子学标准化技术委员会",0,null,"一般会员单位",2000]
["上海艾络格电子技术有限公司",0,null,"一般会员单位",2000]
["上海伍丰科学仪器有限公司",2000,"2022-03-03","一般会员单位",2000]
["上海杰晟科学仪器有限公司",0,null,"一般会员单位",2000]
["奥地利是能公司上海代表处",0,null,"一般会员单位",2000]
["上海派朗德贵金属有限公司",0,null,"一般会员单位",2000]
["上海都华实业有限公司",0,null,"一般会员单位",2000]
["库顿电子科技（上海）有限公司",0,null,"一般会员单位",2000]
["中颖电子股份有限公司",0,null,"一般会员单位",2000]
["恩德斯豪斯（中国）自动化有限公司",5000,"2022-03-09","理事单位",5000]
["上海龙跃仪器设备有限公司",0,null,"一般会员单位",2000]
["上海第二工业大学",0,null,"一般会员单位",2000]
["上海热策电子科技有限公司",0,null,"一般会员单位",2000]
["上海岩征实验仪器有限公司",0,null,"一般会员单位",2000]
["上海华爱色谱分析技术有限公司",0,null,"一般会员单位",2000]
["上海荣泰生化工程有限公司",0,null,"一般会员单位",2000]
["西宝生物科技（上海）股份有限公司",0,null,"一般会员单位",2000]
["上海千欣仪器有限公司",2000,"2022-03-31","一般会员单位",2000]
["常熟市梦兰百灵天平仪器有限公司",0,null,"一般会员单位",2000]
["南京江南永新光学有限公司",5000,"2022-03-10","理事单位",5000]
["南京分析仪器厂有限公司",5000,"2022-04-07","理事单位",5000]
["工装自控工程(无锡)有限公司",0,null,"常务理事单位",5000]
["江阴市节流装置厂有限公司",0,null,"一般会员单位",2000]
["江阴市电磁阀厂",0,null,"一般会员单位",2000]
["常州双环热工仪表有限公司",0,null,"一般会员单位",2000]
["常州市东泰合金有限公司",0,null,"一般会员单位",2000]
["江苏华鑫合金有限公司",0,null,"一般会员单位",2000]
["苏州庆丰仪表有限公司",0,null,"一般会员单位",2000]
["苏州化工仪表有限公司",0,null,"一般会员单位",2000]
["苏州通源自动化设备有限公司",0,null,"一般会员单位",2000]
["苏州一光仪器有限公司",0,null,"常务理事单位",5000]
["苏州苏试试验集团股份有限公司",20000,"2022-03-10","副理事长单位",20000]
["连云港水表厂",0,null,"一般会员单位",2000]
["泰兴市热工仪表厂有限公司",0,null,"一般会员单位",2000]
["江苏江分电分析仪器有限公司",0,null,"理事单位",5000]
["南京集成电路研究所有限公司",0,null,"一般会员单位",2000]
["南京机电产业(集团)有限公司",0,null,"一般会员单位",2000]
["无锡建仪仪器机械有限公司",5000,"2022-06-07","理事单位",5000]
["苏州宝岛仪表有限公司",0,null,"一般会员单位",2000]
["菲尼克斯(中国)投资有限公司",0,null,"理事单位",5000]
["江苏省仪器仪表行业协会",0,null,"一般会员单位",2000]
["国电南瑞三能电力仪表(南京)有限公司",0,null,"一般会员单位",2000]
["镇江市新型电器设备厂有限公司",0,null,"一般会员单位",2000]
["江苏新宇能电力科技有限公司",0,null,"一般会员单位",2000]
["无锡市恒通电器有限公司",0,null,"一般会员单位",2000]
["南京新联电子股份有限公司",0,null,"一般会员单位",2000]
["徐州阿卡控制阀门有限公司",0,null,"一般会员单位",2000]
["苏州东山防腐仪表阀门有限公司",0,null,"一般会员单位",2000]
["江苏林洋能源股份有限公司",0,null,"常务理事单位",5000]
["南京尼康江南光学仪器有限公司",0,null,"一般会员单位",2000]
["南京东利来光电实业有限责任公司",5000,"2022-03-11","理事单位",5000]
["苏州自来水表业有限公司",0,null,"一般会员单位",2000]
["常州市成丰流量仪表有限公司",0,null,"一般会员单位",2000]
["恩德斯豪斯（苏州）自动化仪表有限公司",0,null,"一般会员单位",2000]
["江苏华海测控技术有限公司",0,null,"一般会员单位",2000]
["江苏卡欧万泓电子有限公司",0,null,"一般会员单位",2000]
["莱赛激光科技股份有限公司",0,null,"一般会员单位",2000]
["常州市富月砝码有限公司",0,null,"一般会员单位",2000]
["昆山市超声仪器有限公司",5000,"2022-03-03","理事单位",5000]
["南京沃天科技股份有限公司",5000,"2022-03-29","理事单位",5000]
["苏州兰炼富士仪表有限公司",0,null,"一般会员单位",2000]
["南京优倍电气有限公司",0,null,"理事单位",5000]
["南京江南光电仪器有限公司",0,null,"一般会员单位",2000]
["江苏西欧电子有限公司",0,null,"一般会员单位",2000]
["苏州东菱振动试验仪器有限公司",0,null,"理事单位",5000]
["南京科远智慧科技集团股份有限公司",0,null,"一般会员单位",2000]
["江苏天瑞仪器股份有限公司",5000,"2022-03-03","理事单位",5000]
["无锡市特种压力表有限公司",0,null,"一般会员单位",2000]
["南京能瑞自动化设备股份有限公司",0,null,"一般会员单位",2000]
["国网电力科学研究院",0,null,"一般会员单位",2000]
["南京飞腾电子科技有限公司",0,null,"一般会员单位",2000]
["江苏汉邦科技有限公司",0,null,"一般会员单位",2000]
["苏州博睿测控设备有限公司",0,null,"一般会员单位",2000]
["英特派铂业股份有限公司",5000,"2022-05-18","理事单位",5000]
["无锡连环合金有限公司",0,null,"一般会员单位",2000]
["常州市潞城乡新河特殊电线厂",0,null,"一般会员单位",2000]
["常州市仙偶电子净化设备有限公司",0,null,"一般会员单位",2000]
["南通俊泰合金纤维有限公司",0,null,"一般会员单位",2000]
["连云港市隆泰镁业有限公司",0,null,"一般会员单位",2000]
["无锡市圣汉斯控制系统有限公司",0,null,"一般会员单位",2000]
["无锡智能自控工程股份有限公司",0,null,"理事单位",5000]
["无锡市厚德自动化仪表有限公司",0,null,"理事单位",5000]
["江苏盛德电子仪表有限公司",0,null,"一般会员单位",2000]
["常州市南极磁电器件厂",0,null,"一般会员单位",2000]
["苏州中崟传感股份有限公司",0,null,"一般会员单位",2000]
["江苏恩泰传感器有限公司",0,null,"一般会员单位",2000]
["美新半导体(无锡)有限公司",0,null,"一般会员单位",2000]
["昆山双桥传感器测控技术有限公司",0,null,"一般会员单位",2000]
["南京科敏电子有限公司",0,null,"一般会员单位",2000]
["苏州福田激光精密仪器有限公司",0,null,"一般会员单位",2000]
["江苏联能电子技术有限公司",0,null,"一般会员单位",2000]
["江苏苏仪集团有限公司",2000,"2022-03-03","一般会员单位",2000]
["苏州德兰能源科技股份有限公司",0,null,"一般会员单位",2000]
["无锡市海鹰加科海洋技术有限责任公司",2000,"2022-04-21","一般会员单位",2000]
["常州大地测绘科技有限公司",0,null,"一般会员单位",2000]
["江苏斯菲尔电气股份有限公司",0,null,"一般会员单位",2000]
["南京丹迪克科技开发有限公司",0,null,"一般会员单位",2000]
["苏州计量测试院",5000,"2022-03-14","理事单位",5000]
["无锡市金义博仪器科技有限公司",0,null,"一般会员单位",2000]
["无锡格林通安全装备有限公司",0,null,"一般会员单位",2000]
["兴化市仪表协会",0,null,"一般会员单位",2000]
["江苏金迪电子科技有限公司",0,null,"一般会员单位",2000]
["常州天利智能控制股份有限公司",0,null,"一般会员单位",2000]
["威卡自动化仪表（苏州）有限公司",0,null,"一般会员单位",2000]
["江阴长仪集团有限公司",0,null,"一般会员单位",2000]
["无锡苏南试验设备有限公司",0,null,"一般会员单位",2000]
["江苏华尔威科技集团有限公司",2000,"2022-03-07","一般会员单位",2000]
["江苏金环试验设备有限公司",0,null,"一般会员单位",2000]
["昆山市创新科技检测仪器有限公司",0,null,"一般会员单位",2000]
["常州市潞城慧热电子厂",0,null,"一般会员单位",2000]
["西尼尔(南京)过程控制有限公司",0,null,"一般会员单位",2000]
["徐州豪立电子有限公司",0,null,"一般会员单位",2000]
["国电南瑞科技股份有限公司",0,null,"一般会员单位",2000]
["江苏苏源杰瑞电表有限公司",0,null,"一般会员单位",2000]
["苏州未来电器股份有限公司",2000,"2022-03-07","一般会员单位",2000]
["苏州慧利仪器有限责任公司",0,null,"一般会员单位",2000]
["苏州拓博机械设备有限公司",2000,"2022-03-10","一般会员单位",2000]
["苏州飞思拓电子科技有限公司",0,null,"一般会员单位",2000]
["无锡中德伯尔生物技术有限公司",0,null,"一般会员单位",2000]
["常州仙钰合金装璜工程有限公司",0,null,"一般会员单位",2000]
["苏州康尼格电子科技股份有限公司",0,null,"一般会员单位",2000]
["江苏多维科技有限公司",2000,"2022-05-18","一般会员单位",2000]
["江苏美正生物科技有限公司",0,null,"一般会员单位",2000]
["常州磐诺仪器有限公司",0,null,"一般会员单位",2000]
["苏州美名软件有限公司",0,null,"一般会员单位",2000]
["欧普图斯（苏州）光学纳米科技有限公司",0,null,"一般会员单位",2000]
["智锐达仪器科技南通有限公司",0,null,"一般会员单位",2000]
["南京国思源商贸有限公司",2000,"2022-03-14","一般会员单位",2000]
["天合光能股份有限公司",0,null,"一般会员单位",2000]
["南京顺升自动化有限公司",0,null,"一般会员单位",2000]
["江苏杰克仪表有限公司",0,null,"一般会员单位",2000]
["国网江苏省电力公司电力科学研究院",0,null,"一般会员单位",2000]
["苏州迪芬德物联网科技有限公司",0,null,"一般会员单位",2000]
["南京基天生物技术有限责任公司",0,null,"一般会员单位",2000]
["杭州华立仪表股份有限公司",0,null,"一般会员单位",2000]
["杭州西子集团有限公司",0,null,"一般会员单位",2000]
["宁波新芝生物科技股份有限公司",0,null,"一般会员单位",2000]
["浙江泰索科技有限公司",0,null,"一般会员单位",2000]
["杭州炬华科技股份有限公司",5000,"2022-03-10","理事单位",5000]
["杭州春江仪表有限公司",0,null,"一般会员单位",2000]
["乐清市伦特电子仪表有限公司",0,null,"一般会员单位",2000]
["杭州海兴电力科技股份有限公司",0,null,"理事单位",5000]
["宁波水表（集团）股份有限公司",20000,"2022-03-07","副理事长单位",20000]
["宁波永新光学股份有限公司",20000,"2022-03-31","副理事长单位",20000]
["浙江恒业电子有限公司",2000,"2022-04-15","一般会员单位",2000]
["宁波华光精密仪器有限公司",2000,"2022-03-11","一般会员单位",2000]
["余姚市银环流量仪表有限公司",0,null,"一般会员单位",2000]
["舜宇光学科技(集团)有限公司",5000,"2022-03-16","常务理事单位",5000]
["乐清市华东仪表厂",5000,"2022-04-15","理事单位",5000]
["浙江伦特机电有限公司",0,null,"一般会员单位",2000]
["浙江瑞总阀门制造有限公司",0,null,"一般会员单位",2000]
["瑞安市工业自动化仪表总厂",0,null,"一般会员单位",2000]
["浙江中德自控科技股份有限公司",0,null,"一般会员单位",2000]
["浙江苍南仪表集团股份有限公司",5000,"2022-03-03","理事单位",5000]
["海盐普博电机有限公司",0,null,"一般会员单位",2000]
["浙江竞远机械设备有限公司",0,null,"一般会员单位",2000]
["台州市椒江自动化仪表有限公司",0,null,"一般会员单位",2000]
["浙江春晖仪表股份有限公司",0,null,"一般会员单位",2000]
["中建材轻工业自动化研究所",0,null,"一般会员单位",2000]
["浙江大学光电信息工程学系",0,null,"特邀理事单位",0]
["浙江省仪器仪表行业协会",0,null,"一般会员单位",2000]
["宁波三星医疗电气股份有限公司",5000,"2022-03-07","常务理事单位",5000]
["浙江金华自动化仪表有限公司",0,null,"一般会员单位",2000]
["浙江联泰仪表有限公司",0,null,"一般会员单位",2000]
["浙江正泰仪器仪表有限责任公司",5000,"2022-03-07","常务理事单位",5000]
["宁波市镇海传感器厂",0,null,"一般会员单位",2000]
["温州海米特集团有限公司",0,null,"一般会员单位",2000]
["天信仪表集团有限公司",0,null,"理事单位",5000]
["浙江天正电气股份有限公司",0,null,"一般会员单位",2000]
["浙江万胜智能科技股份有限公司",5000,"2022-03-16","理事单位",5000]
["浙江华仪电子股份有限公司",2000,"2022-03-11","一般会员单位",2000]
["浙江登立电表仪器有限公司",0,null,"一般会员单位",2000]
["浙江松夏仪表有限公司",0,null,"一般会员单位",2000]
["浙江永昌仪表有限公司",0,null,"一般会员单位",2000]
["华邦电力科技股份有限公司",0,null,"一般会员单位",2000]
["宁波海越电器制造有限公司",0,null,"一般会员单位",2000]
["杭州百富电子技术有限公司",5000,"2022-03-16","理事单位",5000]
["浙江中控技术股份有限公司",20000,"2022-05-18","副理事长单位",20000]
["浙江大学工业自动化国家工程研究中心",0,null,"一般会员单位",2000]
["浙江迪元仪表有限公司",5000,"2022-03-07","理事单位",5000]
["宁波奥崎自动化仪表设备有限公司",5000,"2022-03-14","一般会员单位",2000]
["温州市仪器仪表行业协会",0,null,"特邀理事单位",0]
["宁波市江北兴达焊割减压仪表厂",0,null,"一般会员单位",2000]
["浙江精杰自动化仪表阀股份有限公司",0,null,"一般会员单位",2000]
["德力西集团仪器仪表有限公司",5000,"2022-03-07","理事单位",5000]
["长城电器集团有限公司",0,null,"一般会员单位",2000]
["江苏益顺感应科技有限公司",0,null,"一般会员单位",2000]
["温州市天测光学仪器有限公司",0,null,"一般会员单位",2000]
["杭州盘古自动化系统有限公司",0,null,"理事单位",5000]
["乐清市自动化仪表九厂",0,null,"一般会员单位",2000]
["龙飞集团有限公司",0,null,"一般会员单位",2000]
["聚光科技（杭州）股份有限公司",20000,"2022-03-07","副理事长单位",20000]
["宁波东海集团有限公司",2000,"2022-03-09","一般会员单位",2000]
["华立科技股份有限公司",20000,"2022-03-16","副理事长单位",20000]
["乐清市东联电子仪表有限公司",0,null,"一般会员单位",2000]
["杭州雪中炭恒温技术有限公司",0,null,"理事单位",5000]
["宁波市镇海兴隆仪表有限公司",0,null,"一般会员单位",2000]
["绍兴市肯特机械电子有限公司",0,null,"一般会员单位",2000]
["绍兴市上虞神舟仪表有限公司",0,null,"一般会员单位",2000]
["浙江三方控制阀股份有限公司",0,null,"一般会员单位",2000]
["浙江欧德利科技有限公司",0,null,"一般会员单位",2000]
["浙江黄岩航洋电子有限公司",0,null,"一般会员单位",2000]
["浙江永泰隆电子股份有限公司",0,null,"一般会员单位",2000]
["浙江锡仪试验机制造有限公司",0,null,"一般会员单位",2000]
["浙江辰鑫机械设备有限公司",0,null,"一般会员单位",2000]
["雷尔达仪表有限公司",0,null,"一般会员单位",2000]
["浙江中恒仪器仪表有限公司",0,null,"一般会员单位",2000]
["宁波隆兴气割工具有限公司",0,null,"一般会员单位",2000]
["宁波华缘气体控制设备制造有限公司",0,null,"一般会员单位",2000]
["浙江普赛迅仪器仪表有限公司",0,null,"一般会员单位",2000]
["余姚市压力仪表厂",0,null,"一般会员单位",2000]
["余姚市恒辉仪表有限公司",0,null,"一般会员单位",2000]
["浙江劲仪仪器仪表有限公司",0,null,"一般会员单位",2000]
["浙江力诺流体控制科技股份有限公司",0,null,"一般会员单位",2000]
["浙江泛泰仪器有限公司",0,null,"一般会员单位",2000]
["金华金试试验机有限公司",0,null,"一般会员单位",2000]
["宁波高新区七鑫旗科技有限公司",0,null,"一般会员单位",2000]
["宁波高松电子有限公司",0,null,"一般会员单位",2000]
["杭州西力智能科技股份有限公司",0,null,"理事单位",5000]
["利尔达科技集团股份有限公司",0,null,"一般会员单位",2000]
["浙江晨泰科技股份有限公司",0,null,"一般会员单位",2000]
["杭州杭星仪表有限公司",0,null,"一般会员单位",2000]
["环宇集团有限公司",0,null,"一般会员单位",2000]
["海盐普禄科电力仪表有限责任公司",0,null,"一般会员单位",2000]
["杭州丰源铜业有限公司",0,null,"一般会员单位",2000]
["浙江格蕾特电器股份有限公司",0,null,"一般会员单位",2000]
["浙江土工仪器制造有限公司",0,null,"理事单位",5000]
["杭州萧山陆氏仪表线缆有限公司",0,null,"一般会员单位",2000]
["湖州自动化仪表厂",0,null,"一般会员单位",2000]
["浙江迪克森电器有限公司",0,null,"一般会员单位",2000]
["宁波市全盛壳体有限公司",2000,"2022-03-29","一般会员单位",2000]
["浙江西力智能科技有限公司",0,null,"一般会员单位",2000]
["浙江八达电子仪表有限公司",2000,"2022-03-03","一般会员单位",2000]
["杭州富铭环境科技有限公司",0,null,"一般会员单位",2000]
["浙江中控自动化仪表有限公司",2000,"2022-04-13","一般会员单位",2000]
["宁波佳测仪器有限公司",0,null,"一般会员单位",2000]
["绍兴市上虞探矿仪器厂",0,null,"一般会员单位",2000]
["浙江泰林生物技术股份有限公司",0,null,"一般会员单位",2000]
["浙江慧仁电子有限公司",0,null,"一般会员单位",2000]
["人民电器集团仪器仪表有限公司",0,null,"一般会员单位",2000]
["杭州众享机械技术有限公司",0,null,"一般会员单位",2000]
["杭州天迈生物科技有限公司",0,null,"理事单位",5000]
["浙江中孚流体机械有限公司",0,null,"一般会员单位",2000]
["海盐众信电子股份有限公司",0,null,"一般会员单位",2000]
["杭州裕正电子有限公司",0,null,"一般会员单位",2000]
["浙江力辉电器有限公司",0,null,"一般会员单位",2000]
["杭州超视科技有限公司",0,null,"一般会员单位",2000]
["浙江华采科技有限公司",2000,"2022-03-14","一般会员单位",2000]
["浙江正泰中自控制工程有限公司",5000,"2022-03-24","理事单位",5000]
["浙江罗托克执行器股份有限公司",0,null,"一般会员单位",2000]
["浙江中拓合控科技有限公司",2000,"2022-03-14","一般会员单位",2000]
["宁波市教学仪器有限公司",0,null,"一般会员单位",2000]
["宁波湛京光学仪器有限公司",2000,"2022-03-18","一般会员单位",2000]
["浙江纳德科学仪器有限公司",5000,"2022-03-07","理事单位",5000]
["浙江迪恩生物科技股份有限公司",0,null,"一般会员单位",2000]
["杭州南开日新生物技术有限公司",0,null,"一般会员单位",2000]
["浙江领昆智能机电设备有限公司",0,null,"一般会员单位",2000]
["浙江金中机电科技有限公司",0,null,"一般会员单位",2000]
["浙江恩鸿电子有限公司",2000,"2022-03-10","一般会员单位",2000]
["杭州鸣创电子科技有限公司",0,null,"一般会员单位",2000]
["浙江奥新仪表有限公司",2000,"2022-03-18","一般会员单位",2000]
["杭州万高科技股份有限公司",0,null,"一般会员单位",2000]
["宁波迦南智能电气股份有限公司",2000,"2022-03-03","一般会员单位",2000]
["宁波志圣烘箱有限公司",0,null,"一般会员单位",2000]
["合肥精大仪表股份有限公司",0,null,"理事单位",5000]
["安徽天康（集团）股份有限公司",5000,"2022-03-10","常务理事单位",5000]
["安徽徽宁电器仪表集团有限公司",0,null,"一般会员单位",2000]
["蓝德能源科技股份有限公司",0,"2022-03-11","理事单位",5000]
["鑫国集团有限公司",0,null,"理事单位",5000]
["安徽皖科电子工程有限公司",0,null,"一般会员单位",2000]
["安徽佳成环保科技有限公司",0,null,"一般会员单位",2000]
["安徽中鑫继远信息技术股份有限公司",0,null,"一般会员单位",2000]
["安徽中控仪表有限公司",0,null,"一般会员单位",2000]
["合肥知常光电科技有限公司",2000,"2022-04-13","一般会员单位",2000]
["天长市银久铂铑材料有限公司",0,null,"一般会员单位",2000]
["晶锋集团股份有限公司",0,null,"一般会员单位",2000]
["福州中福水表有限公司",0,null,"一般会员单位",2000]
["厦门星鲨仪器有限公司",0,null,"一般会员单位",2000]
["厦门大学机电工程系",0,null,"一般会员单位",2000]
["福建省机械工业联合会仪器仪表专业委员会",0,null,"特邀理事单位",0]
["麦克奥迪实业集团有限公司",5000,"2022-03-10","理事单位",5000]
["福建上润精密仪器有限公司",5000,"2022-03-24","理事单位",5000]
["福州福光百特自动化设备有限公司",0,null,"一般会员单位",2000]
["厦门宏发电力电器有限公司",2000,"2022-03-07","一般会员单位",2000]
["红相股份有限公司",0,null,"一般会员单位",2000]
["福建顺昌虹润精密仪器有限公司",0,null,"常务理事单位",5000]
["福建东辉智能仪器有限公司",0,null,"一般会员单位",2000]
["厦门安东电子有限公司",0,null,"一般会员单位",2000]
["厦门埃尔华进出口有限公司",0,null,"一般会员单位",2000]
["厦门大学萨本栋微米纳米技术研究中心",0,null,"一般会员单位",2000]
["厦门斯坦道科学仪器股份有限公司",0,null,"一般会员单位",2000]
["爱德森(厦门)电子有限公司",2000,"2022-03-07","一般会员单位",2000]
["厦门海荭兴仪器股份有限公司",0,null,"一般会员单位",2000]
["厦门宇电自动化科技有限公司",5000,"2022-03-03","理事单位",5000]
["厦门精艺兴业科技有限公司",0,null,"一般会员单位",2000]
["厦门美亚中敏电子科技有限公司",0,null,"一般会员单位",2000]
["福州佳宸生物科技有限公司",0,null,"一般会员单位",2000]
["福州宏泰分析技术有限公司",0,null,"一般会员单位",2000]
["睿科集团（厦门）股份有限公司",0,null,"一般会员单位",2000]
["美捷特（厦门）传感器件有限公司上海分公司",0,null,"一般会员单位",2000]
["漳州市东方智能仪表有限公司",0,null,"一般会员单位",2000]
["凤凰光学股份有限公司",0,null,"一般会员单位",2000]
["中国船舶工业集团公司第6354研究所",0,null,"一般会员单位",2000]
["三川智慧科技股份有限公司",5000,"2022-03-03","理事单位",5000]
["江西合力泰科技有限公司",0,null,"一般会员单位",2000]
["江西华科精密仪器有限公司",0,null,"一般会员单位",2000]
["济南时代试金试验机有限公司",0,null,"一般会员单位",2000]
["淄博飞雁先行测控技术有限公司",0,null,"一般会员单位",2000]
["山东鲁南瑞虹化工仪器有限公司",0,null,"理事单位",5000]
["威海市试验机制造有限公司",0,null,"一般会员单位",2000]
["莱州华银试验仪器有限公司",5000,"2022-03-24","理事单位",5000]
["潍坊奥博仪表科技发展有限公司",0,null,"一般会员单位",2000]
["山东省科学院海洋仪器仪表研究所",0,null,"一般会员单位",2000]
["山东电器仪表工业协会",0,null,"一般会员单位",2000]
["青岛海达仪表有限公司厂",0,null,"一般会员单位",2000]
["青岛自动化仪表有限公司",0,null,"一般会员单位",2000]
["烟台通用节能设备有限公司",2000,"2022-03-03","一般会员单位",2000]
["山东三泵科森仪器有限公司",0,null,"一般会员单位",2000]
["潍坊远东自动化仪表股份有限公司",0,null,"一般会员单位",2000]
["山东三川水表有限公司",0,null,"一般会员单位",2000]
["山东冠翔仪表有限公司",0,null,"一般会员单位",2000]
["山东阿伐流体控制有限公司",0,null,"一般会员单位",2000]
["济南天辰试验机制造有限公司",0,null,"一般会员单位",2000]
["山东海润德仪器仪表有限公司",0,null,"一般会员单位",2000]
["青岛盛瀚色谱技术有限公司",5000,"2022-03-29","理事单位",5000]
["威海鑫泰化工机械有限公司",0,null,"一般会员单位",2000]
["济南金宝马电子仪表有限公司",0,null,"一般会员单位",2000]
["青岛恒昌仪表有限公司",0,null,"一般会员单位",2000]
["青岛金格仪表有限公司",0,null,"一般会员单位",2000]
["青岛山野自动化工程有限公司",0,null,"一般会员单位",2000]
["烟台艾德康生物科技有限公司",0,null,"一般会员单位",2000]
["济南科汇试验设备有限公司",0,null,"一般会员单位",2000]
["烟台东方威思顿电气有限公司",3500,"2022-03-09","常务理事单位",5000]
["青岛高科通信股份有限公司",0,null,"一般会员单位",2000]
["山东计保电气有限公司",0,null,"理事单位",5000]
["山东沃克控制阀有限公司",0,null,"一般会员单位",2000]
["济南市大秦机电设备有限公司",0,null,"理事单位",5000]
["招远市大明仪表有限公司",0,null,"一般会员单位",2000]
["山东东润仪表科技股份有限公司",0,null,"理事单位",5000]
["青岛乾程科技股份有限公司",2000,"2022-03-09","一般会员单位",2000]
["山东北斗华宸导航技术股份有限公司",0,null,"一般会员单位",2000]
["山东海电电力科技有限公司",0,null,"一般会员单位",2000]
["淄博纳泰微系统传感有限公司",0,null,"一般会员单位",2000]
["海能未来技术集团股份有限公司",0,null,"理事单位",5000]
["中电装备山东电子有限公司",2000,"2022-05-18","一般会员单位",2000]
["青岛鼎信通讯股份有限公司",0,null,"一般会员单位",2000]
["德州信平电子有限公司",2000,"2022-03-07","一般会员单位",2000]
["山东航天正和电子有限公司",0,null,"一般会员单位",2000]
["济南瑞泉电子有限公司",2000,"2022-03-03","一般会员单位",2000]
["济南精锐分析仪器有限公司",0,null,"一般会员单位",2000]
["山东力群合金材料有限公司",0,null,"一般会员单位",2000]
["青岛埃仑色谱科技有限公司",0,null,"一般会员单位",2000]
["烟台新悦电气有限公司",0,null,"一般会员单位",2000]
["潍坊五洲浩特电气有限公司",2000,"2022-03-16","一般会员单位",2000]
["青岛鲁海光电科技有限公司",0,null,"一般会员单位",2000]
["山东立博迪科学仪器股份有限公司",0,null,"一般会员单位",2000]
["济南安鑫宝实验室设备有限公司",0,null,"一般会员单位",2000]
["济南东岱科学器材有限公司",0,null,"一般会员单位",2000]
["智度科技股份有限公司",0,null,"一般会员单位",2000]
["开封仪表有限公司",5000,"2022-04-15","常务理事单位",5000]
["河南省仪器仪表行业协会",0,null,"一般会员单位",2000]
["河南许继仪表有限公司",5000,"2022-03-18","理事单位",5000]
["河南思达自动化仪表有限公司",0,null,"一般会员单位",2000]
["三门峡上阳电器平衡机械有限公司",0,null,"一般会员单位",2000]
["汉威科技集团股份有限公司",20000,"2022-03-09","副理事长单位",20000]
["郑州市仪器仪表协会",0,null,"一般会员单位",2000]
["郑州椿长仪器仪表有限公司",0,null,"一般会员单位",2000]
["河南德瑞普测绘仪器有限公司",0,null,"一般会员单位",2000]
["新天科技股份有限公司",0,null,"一般会员单位",2000]
["河南驰诚电气股份有限公司",2000,"2022-03-29","一般会员单位",2000]
["郑州瑞能电气有限公司",0,null,"一般会员单位",2000]
["郑州阳天科技开发有限公司",0,null,"一般会员单位",2000]
["郑州富和电气有限公司",0,null,"一般会员单位",2000]
["河南立畅仪器设备有限公司",0,null,"一般会员单位",2000]
["孝感松林智能计测器有限公司",2000,"2022-04-18","一般会员单位",2000]
["武汉奥统电气有限公司",0,null,"一般会员单位",2000]
["湖北方圆环保科技有限公司",0,null,"一般会员单位",2000]
["武汉测压仪表有限公司",0,null,"一般会员单位",2000]
["武汉长锋发电设备有限公司",0,null,"一般会员单位",2000]
["武汉永盛科技有限公司",0,null,"一般会员单位",2000]
["武汉博赛尔科技有限公司",0,null,"一般会员单位",2000]
["武汉华枫传感技术有限责任公司",0,null,"一般会员单位",2000]
["武汉海德龙仪表科技有限公司",0,null,"一般会员单位",2000]
["武汉盛帆电子股份有限公司",2000,"2022-03-09","一般会员单位",2000]
["武汉优斯特传感器科技有限公司",2000,"2022-03-03","一般会员单位",2000]
["中国船舶重工集团第七一〇研究所",0,null,"一般会员单位",2000]
["华中科技大学光学与电子信息学院",0,null,"一般会员单位",2000]
["中纬测量系统(武汉)有限公司",0,null,"一般会员单位",2000]
["武汉滨湖电子有限责任公司",0,null,"一般会员单位",2000]
["武汉天宇光电仪器有限公司",0,null,"一般会员单位",2000]
["湖北洛克泰克仪器股份有限公司",0,null,"一般会员单位",2000]
["武汉阿迪克电子股份有限公司",2000,"2022-03-31","一般会员单位",2000]
["武汉昊诚锂电科技股份有限公司",2000,"2022-03-03","一般会员单位",2000]
["武汉欣泰扬生物科技有限公司",0,null,"一般会员单位",2000]
["武汉嘉仪通科技有限公司",0,null,"一般会员单位",2000]
["武汉国测恒通智能仪器有限公司",0,null,"一般会员单位",2000]
["湖北久华食安生物技术有限公司",0,null,"一般会员单位",2000]
["湖南声仪测控科技有限责任公司",0,null,"理事单位",5000]
["湖南省仪器仪表行业协会",0,null,"特邀理事单位",0]
["怀化建南机器厂有限公司",0,null,"一般会员单位",2000]
["威胜集团有限公司",20000,"2022-04-18","副理事长单位",20000]
["湖南省紫继超速机械有限公司",0,null,"一般会员单位",2000]
["长沙益能电气设备有限公司",0,null,"一般会员单位",2000]
["长沙高新开发区湘仪天平仪器设备有限公司",0,null,"理事单位",5000]
["湖南德诺科学仪器有限公司",0,null,"理事单位",5000]
["湖南湘仪实验室仪器开发有限公司",5000,"2022-04-15","常务理事单位",5000]
["长沙开元仪器有限公司",5000,"2022-03-21","常务理事单位",5000]
["长沙英泰仪器有限公司",0,null,"一般会员单位",2000]
["湘潭华丰仪器制造有限公司",0,null,"一般会员单位",2000]
["湖南尚泰测控科技有限公司",0,null,"一般会员单位",2000]
["长沙湘平科技发展有限公司",0,null,"一般会员单位",2000]
["湖南银河电气有限公司",0,null,"一般会员单位",2000]
["湖南万英科技有限公司",0,null,"一般会员单位",2000]
["株洲振邦科技实业有限公司",0,null,"一般会员单位",2000]
["长沙天恒测控技术有限公司",0,null,"一般会员单位",2000]
["株洲三达电子制造有限公司",0,null,"一般会员单位",2000]
["长沙湘智离心机仪器有限公司",0,null,"一般会员单位",2000]
["长沙诺金自动化成套设备有限公司",0,null,"一般会员单位",2000]
["湖南力升信息设备有限公司",0,null,"一般会员单位",2000]
["湖南三德科技股份有限公司",5000,"2022-03-07","理事单位",5000]
["湖南吉尔森科技发展有限公司",0,null,"一般会员单位",2000]
["长沙安迪生物科技有限公司",0,null,"一般会员单位",2000]
["湖南镭目科技有限公司",0,null,"一般会员单位",2000]
["广州粤显光学仪器有限责任公司",0,null,"一般会员单位",2000]
["广东汕头超声电子股份有限公司超声仪器分公司",5000,"2022-03-03","理事单位",5000]
["佛山分析仪有限公司",0,null,"一般会员单位",2000]
["中山市调节阀厂有限公司",0,null,"一般会员单位",2000]
["肇庆自动化仪表有限公司",5000,"2022-03-03","理事单位",5000]
["广东德庆电表制造有限公司",0,null,"一般会员单位",2000]
["中国电器科学研究院股份有限公司",5000,"2022-03-03","理事单位",5000]
["深圳市仪器仪表与自动化行业协会",0,null,"特邀理事单位",0]
["湖南赫西仪器装备有限公司",5000,"2022-03-03","理事单位",5000]
["广东浩宁达实业有限公司",2000,"2022-05-18","一般会员单位",2000]
["广东迈世测量有限公司",0,null,"一般会员单位",2000]
["深圳市科陆电子科技股份有限公司",0,null,"理事单位",5000]
["美特斯工业系统(中国)有限公司",0,null,"理事单位",5000]
["优利德科技（中国）股份有限公司",5000,"2022-03-09","理事单位",5000]
["深圳市江机实业有限公司",5000,"2022-03-14","理事单位",5000]
["广东东崎电气有限公司",0,null,"一般会员单位",2000]
["深圳市建恒测控股份有限公司",0,null,"一般会员单位",2000]
["广州南方测绘科技股份有限公司",0,null,"一般会员单位",2000]
["高铁检测仪器（东莞）有限公司",0,null,"一般会员单位",2000]
["广东浩迪创新科技有限公司",0,null,"一般会员单位",2000]
["兰吉尔仪表系统（珠海）有限公司",2000,"2022-03-29","一般会员单位",2000]
["深圳深宝电器仪表有限公司",2000,"2022-03-14","一般会员单位",2000]
["深圳长城开发科技股份有限公司",0,null,"一般会员单位",2000]
["深圳市思达仪表有限公司",5000,"2022-04-02","理事单位",5000]
["深圳市航天泰瑞捷电子有限公司",0,null,"理事单位",5000]
["江元（重庆）科技集团股份有限公司",0,null,"一般会员单位",2000]
["广州市中海达测绘仪器有限公司",0,null,"一般会员单位",2000]
["珠海黑马医学仪器有限公司",0,null,"一般会员单位",2000]
["深圳清华大学研究院",0,null,"一般会员单位",2000]
["深圳市步科电气有限公司",0,null,"一般会员单位",2000]
["深圳华越南方电子技术有限公司",0,null,"一般会员单位",2000]
["海南丰兴精密产业股份有限公司",0,null,"一般会员单位",2000]
["惠州亿纬锂能股份有限公司",2000,"2022-03-31","一般会员单位",2000]
["深圳市信为科技发展有限公司",0,null,"一般会员单位",2000]
["广东正业科技股份有限公司",0,null,"一般会员单位",2000]
["深圳市胜利高电子科技有限公司",0,null,"一般会员单位",2000]
["深圳市创硕达电子有限公司",0,null,"一般会员单位",2000]
["深圳市中显微电子有限公司",0,null,"一般会员单位",2000]
["深圳市广和通无线股份有限公司",0,null,"一般会员单位",2000]
["深圳市中电华星电子技术有限公司",0,null,"一般会员单位",2000]
["深圳市力合微电子股份有限公司",2000,"2022-03-10","一般会员单位",2000]
["芯海科技（深圳）股份有限公司",0,null,"一般会员单位",2000]
["深圳市中图仪器科技有限公司",2000,"2022-03-09","一般会员单位",2000]
["研祥智能科技股份有限公司",0,null,"一般会员单位",2000]
["珠海派诺科技股份有限公司",0,null,"一般会员单位",2000]
["珠海经济特区凯力电器有限公司",0,null,"一般会员单位",2000]
["深圳市金正方科技股份有限公司",0,null,"一般会员单位",2000]
["惠州中城电子科技有限公司",0,null,"一般会员单位",2000]
["广州奥硕电子科技有限公司",0,null,"一般会员单位",2000]
["深圳市清时捷科技有限公司",2000,"2022-04-21","一般会员单位",2000]
["暨南大学应用力学研究所",0,null,"一般会员单位",2000]
["深圳市凯尔电子厂",0,null,"一般会员单位",2000]
["精量电子(深圳)有限公司",0,null,"一般会员单位",2000]
["广州中海达卫星导航技术股份有限公司",0,null,"一般会员单位",2000]
["深圳市万福达精密设备股份有限公司",0,null,"一般会员单位",2000]
["广州金升阳科技有限公司",0,null,"一般会员单位",2000]
["深圳市鹏锦科技有限公司",0,null,"一般会员单位",2000]
["深圳市迈测科技有限公司",0,null,"一般会员单位",2000]
["广东雅达电子股份有限公司",2000,"2022-03-14","一般会员单位",2000]
["深圳龙电华鑫控股集团股份有限公司",2000,"2022-04-24","一般会员单位",2000]
["深圳市深国安电子科技有限公司",0,null,"一般会员单位",2000]
["佛山市友利华计算机网络有限公司",0,null,"一般会员单位",2000]
["广东科明环境仪器工业有限公司",5000,"2022-03-11","理事单位",5000]
["广州市庆瑞电子科技有限公司",0,null,"一般会员单位",2000]
["广东金标龙仪器仪表科技有限公司",0,null,"一般会员单位",2000]
["深圳市铭星科技有限公司",0,null,"一般会员单位",2000]
["深圳市欧力隆科技有限公司",2000,"2022-03-07","一般会员单位",2000]
["深圳万测试验设备有限公司",0,null,"一般会员单位",2000]
["东莞市优越检测技术服务股份有限公司",0,null,"一般会员单位",2000]
["深圳高品检测设备有限公司",0,null,"一般会员单位",2000]
["广东莱伯通试验设备有限公司",0,null,"一般会员单位",2000]
["东莞万兴鸿自动化有限公司",2000,"2022-03-07","一般会员单位",2000]
["广州西森自动化控制设备有限公司",0,null,"一般会员单位",2000]
["东莞市众志检测仪器有限公司",0,null,"一般会员单位",2000]
["广州禾信仪器股份有限公司",5000,"2022-03-29","理事单位",5000]
["广东达元绿洲食品安全科技股份有限公司",5000,"2022-04-28","理事单位",5000]
["广州讯动网络科技有限公司",0,null,"一般会员单位",2000]
["广州敏扬热电偶有限公司",0,null,"一般会员单位",2000]
["深圳三思纵横科技股份有限公司",0,null,"一般会员单位",2000]
["银河电力集团股份有限公司",0,null,"一般会员单位",2000]
["深圳市皓辰电子科技有限公司",0,null,"一般会员单位",2000]
["佛山市南华仪器股份有限公司",2000,"2022-03-11","一般会员单位",2000]
["深圳市三方圆生物科技有限公司",0,null,"一般会员单位",2000]
["深圳市易瑞生物技术股份有限公司",0,null,"一般会员单位",2000]
["深圳市中创电测技术有限公司",0,null,"一般会员单位",2000]
["深圳市星龙科技股份有限公司",0,null,"一般会员单位",2000]
["深圳市有方科技股份有限公司",0,null,"一般会员单位",2000]
["深圳市中电电力技术股份有限公司",0,null,"一般会员单位",2000]
["广东加华美认证有限公司",0,null,"一般会员单位",2000]
["深圳万讯自控股份有限公司",2000,"2022-03-07","一般会员单位",2000]
["深圳市安锐实业有限公司",0,null,"一般会员单位",2000]
["东莞市德明仪表有限公司",0,null,"一般会员单位",2000]
["广东博立科技有限公司",2000,"2022-03-24","一般会员单位",2000]
["广州市明美光电技术有限公司",0,null,"一般会员单位",2000]
["梧州奥卡光学仪器有限公司",5000,"2022-03-09","理事单位",5000]
["广西睿奕新能源股份有限公司",0,null,"一般会员单位",2000]
["广西桂测科技有限公司",0,null,"一般会员单位",2000]
["重庆耐德工业股份有限公司",0,null,"理事单位",5000]
["重庆银河试验仪器有限公司",5000,"2022-03-07","常务理事单位",5000]
["重庆苏试四达试验设备有限公司",5000,"2022-03-09","理事单位",5000]
["重庆泰捷仪器仪表有限公司",0,null,"一般会员单位",2000]
["重庆光电仪器有限公司",0,null,"一般会员单位",2000]
["重庆工业自动化仪表研究所",5000,"2022-03-18","理事单位",5000]
["重庆材料研究院有限公司",0,null,"副理事长单位",20000]
["重庆智慧水务有限公司",0,null,"一般会员单位",2000]
["重庆世壮仪器仪表有限公司",0,null,"一般会员单位",2000]
["重庆市伟岸测器制造股份有限公司",0,null,"理事单位",5000]
["重庆川仪自动化股份有限公司执行器分公司",5000,"2022-03-14","理事单位",5000]
["重庆川仪分析仪器有限公司",0,null,"一般会员单位",2000]
["重庆川仪调节阀有限公司",5000,"2022-03-10","理事单位",5000]
["重庆川仪自动化股份有限公司金属功能材料分公司",2000,"2022-06-07","一般会员单位",2000]
["重庆川仪自动化股份有限公司十七厂分公司",0,null,"一般会员单位",2000]
["重庆川仪自动化股份有限公司流量仪表分公司",0,null,"理事单位",5000]
["重庆川仪自动化股份有限公司晶体科技分公司",0,null,"一般会员单位",2000]
["重庆市大正仪表股份有限公司",0,null,"理事单位",5000]
["重庆市自动化与仪器仪表协会",0,null,"一般会员单位",2000]
["重庆华林自控仪表股份有限公司",0,null,"一般会员单位",2000]
["重庆洋泰科技发展有限公司",0,null,"一般会员单位",2000]
["重庆昆仑仪表有限公司",0,null,"一般会员单位",2000]
["中电科技集团重庆声光电有限公司",0,null,"一般会员单位",2000]
["重庆市北碚区仪器仪表行业协会",0,null,"一般会员单位",2000]
["重庆凌卡分析仪器有限公司",2000,"2022-03-03","一般会员单位",2000]
["重庆宇通系统软件有限公司",0,null,"一般会员单位",2000]
["重庆科技学院",0,null,"一般会员单位",2000]
["重庆重光实业有限公司",0,null,"一般会员单位",2000]
["重庆奥特光学仪器有限责任公司",0,null,"一般会员单位",2000]
["重庆广合源科技有限公司",0,null,"一般会员单位",2000]
["重庆市万通仪器仪表有限公司",0,null,"一般会员单位",2000]
["重庆兰阀流体控制设备有限公司",0,null,"一般会员单位",2000]
["西南大学自动化研究所",0,null,"一般会员单位",2000]
["中国四联仪器仪表集团有限公司",50000,"2022-03-11","理事长单位",50000]
["重庆阿泰可科技股份有限公司",5000,"2022-03-09","理事单位",5000]
["成都水表厂",0,null,"一般会员单位",2000]
["成都仪器厂",0,null,"理事单位",5000]
["四川省仪器仪表行业协会",0,null,"一般会员单位",2000]
["四川省华峰特种仪表材料研究所",0,null,"一般会员单位",2000]
["成都易华天宇试验设备有限责任公司",0,null,"理事单位",5000]
["成都光明光电股份有限公司",0,null,"一般会员单位",2000]
["森尔(成都)气体传感器有限公司",0,null,"一般会员单位",2000]
["中国工程物理研究院总体所",0,null,"一般会员单位",2000]
["绵阳市维博电子有限责任公司",0,null,"一般会员单位",2000]
["四川仪表工业学校",0,null,"一般会员单位",2000]
["弗锐德天宇环境科技成都有限公司",0,null,"一般会员单位",2000]
["宜宾盈泰光电有限公司",0,null,"一般会员单位",2000]
["成都安迪生测量有限公司",0,null,"一般会员单位",2000]
["四川长江造纸仪器有限责任公司",2000,"2022-03-14","一般会员单位",2000]
["成都世纪方舟科技有限公司",0,null,"一般会员单位",2000]
["成都安恒达科技有限公司",0,null,"一般会员单位",2000]
["贵阳新天光电科技有限公司",2000,"2022-04-15","一般会员单位",2000]
["昆明大方自动控制科技有限公司",0,null,"一般会员单位",2000]
["云南新坐标科技有限公司",0,null,"一般会员单位",2000]
["西仪股份有限公司",0,null,"理事单位",5000]
["陕西电器研究所（航天科技集团公司四院四十四所）",0,null,"一般会员单位",2000]
["陕西富源国际商务有限公司",0,null,"一般会员单位",2000]
["西安胜利仪器有限责任公司",2000,"2022-03-24","一般会员单位",2000]
["西安东风机电股份有限公司",2000,"2022-03-09","一般会员单位",2000]
["横河电机（中国）有限公司",0,null,"一般会员单位",2000]
["秦川机床集团宝鸡仪表有限公司",0,null,"一般会员单位",2000]
["西安旌旗电子股份有限公司",0,null,"一般会员单位",2000]
["麦克传感器股份有限公司",0,null,"理事单位",5000]
["西安力创材料检测技术有限公司",0,null,"一般会员单位",2000]
["麦仪科学仪器（上海）有限公司",0,null,"一般会员单位",2000]
["西安天隆科技有限公司",0,null,"一般会员单位",2000]
["天水红山试验机有限公司",0,null,"一般会员单位",2000]
["甘肃省科学院传感技术研究所",2000,"2022-03-09","一般会员单位",2000]
["甘肃盛世龙腾电子科技有限公司",0,null,"一般会员单位",2000]
["甘肃科昊嘉电子科技有限公司",0,null,"一般会员单位",2000]
["甘肃博华科学器材有限公司",0,null,"一般会员单位",2000]
["兰州嘉特星工贸有限公司",0,null,"一般会员单位",2000]
["宁夏隆基宁光仪表股份有限公司",2000,"2022-03-16","一般会员单位",2000]
["吴忠仪表有限责任公司",5000,"2022-05-18","常务理事单位",5000]
["银川华能电力仪表有限公司",0,null,"一般会员单位",2000]
["中国科学院新疆理化技术研究所",0,null,"一般会员单位",2000]
["中国文化办公设备制造行业协会",0,null,"特邀理事单位",0]
["中国仪器仪表行业协会",0,null,"常务理事单位",5000]
["中国仪器仪表行业协会秘书处",0,null,"常务理事单位",5000]

{"sheet":"Sheet3","index":2,"n_rows":125,"n_cols":2,"rows_kept":125}
["班雪豪","\t安二玲"]
["陈超","\t陈超"]
["陈琛","\t陈琛"]
["陈景平","\t陈景平"]
["陈韶华","\t陈世银"]
["陈世银","\t陈潇炜"]
["陈潇炜","\t陈则新"]
["陈则新","\t程得恩"]
["程得恩","\t崔从敏"]
["单体珺","\t单体珺"]
["董强","\t董强"]
["董珊","\t窦佳欢"]
["窦佳欢","\t付永亮"]
["付强","\t高大会"]
["付永亮","\t辜美来"]
["高大会","\t郭唤斌"]
["高迪","\t郭帅"]
["辜美来","\t国稳稳"]
["郭唤斌","\t哈丹琦·哈哈尔"]
["郭帅","\t郝志杰"]
["哈丹琦·哈哈尔","\t何敏"]
["郝永刚","\t胡博"]
["郝志杰","\t霍乾"]
["何敏","\t霍欣"]
["霍乾","\t蒋琰"]
["霍欣","\t焦彬"]
["贾建峰","\t孔樊强"]
["蒋琰","\t孔小辉"]
["焦彬","\t李刚"]
["孔樊强","\t李琳"]
["孔维鑫","\t李王昊"]
["孔小辉","\t李鑫"]
["李刚","\t李垚"]
["李琳","\t李野"]
["李首阳","\t李云涛"]
["李垚","\t李志鹏"]
["李野","\t梁克敏"]
["李云涛","\t林展鸿"]
["李志鹏","\t刘鹏"]
["林丰义","\t刘信"]
["林展鸿","\t刘毅"]
["刘大江","\t陆敏"]
["刘鹏","\t路宇"]
["刘淑卿","\t罗子杰"]
["刘信","\t马征"]
["刘毅","\t马忠"]
["陆敏","\t孟超伟"]
["路宇","\t亓勇"]
["罗子杰","\t邵剑"]
["马征","\t宋庚"]
["马忠","\t宋巍"]
["孟超伟","\t宋晓会"]
["彭松","\t苏宁"]
["戚天龙","\t孙凯"]
["亓勇","\t田锡凯"]
["祁二飞","\t宛宇生"]
["强华盛","\t王晨伟"]
["邵剑","\t王春森"]
["沈滨","\t王剑"]
["宋庚","\t王剑荣"]
["宋巍","\t王岚"]
["宋晓会","\t王亮"]
["苏宁","\t王琳"]
["孙凯","\t王文娟"]
["田锡凯","\t王旭阳"]
["宛宇生","\t王轩"]
["王晨伟","\t王璇"]
["王春森","\t王亚杰"]
["王剑","\t王钰"]
["王剑荣","\t王志强"]
["王乐春","\t王子"]
["王亮","\t吴君超"]
["王琳","\t向东"]
["王帅","\t邢子寒"]
["王文娟","\t徐昕"]
["王旭阳","\t许运红"]
["王轩","\t杨昌国"]
["王璇","\t杨成强"]
["王亚杰","\t杨春梅"]
["王钰","\t杨洁"]
["王志强","\t杨磊"]
["王忠","\t杨明昊"]
["王子","\t杨鸣哗"]
["魏金风","\t杨文冬"]
["文新华","\t杨燕妮"]
["吴君超","\t于英杰"]
["习婕","\t袁超"]
["向东","\t张彪"]
["邢子寒","\t张峰磊"]
["徐昕","\t张河斌"]
["许超","\t张洪阁"]
["许运红","\t张宁"]
["杨昌国","\t张山"]
["杨成强","\t张帅坤"]
["杨洁","\t张双燕"]
["杨磊","\t张伟明"]
["杨明昊","\t张伟伟"]
["杨鸣哗","\t张先波"]
["杨文冬","\t张歆"]
["杨燕妮","\t张亚南"]
["尹健","\t赵汉青"]
["于英杰","\t赵庆国"]
["袁超","\t赵卓正"]
["张彪","\t钟本营"]
["张峰磊","\t钟晓光"]
["张河斌","\t周西春"]
["张洪阁","\t周勇智"]
["张山","\t朱琳"]
["张帅坤","\t朱宇锋"]
["张双燕"]
["张伟明"]
["张伟伟"]
["张先波"]
["张歆"]
["张亚南"]
["赵汉青"]
["赵庆国"]
["赵卓正"]
["钟本营"]
["钟晓光"]
["周西春"]
["周勇智"]
["朱琳"]
["朱宇锋"]
["朱宇文"]